Name,Sub Group,Service Areas,Expense Type,Narrative,Date,Transaction Number,Amount,Supplier Name,Supplier Ref,Period,Year
Allerdale Borough Council,16150,Supplies & Services,Town Centre Management,General Promotions,02/11/2016,193136,250.01,CUMBRIAN NEWSPAPERS LIMITED,A00869,8,2016
Allerdale Borough Council,15506,Supplies & Services,Finance and Accounting Pay Group,Professional Services,02/11/2016,193137,620.00,LAMONT PRIDMORE (WEST CUMBRIA) LIMITED,A02105,8,2016
Allerdale Borough Council,16150,Supplies & Services,KMAG Enhancement Activity,General Promotions,02/11/2016,193138,19.74,MCKANES PRINTERS,A01507,8,2016
Allerdale Borough Council,16302,Supplies & Services,Sports Development,Room Hire,02/11/2016,193139,80.00,ALL SOULS PAROCHIAL CHURC COUNCIL,A02336,8,2016
Allerdale Borough Council,16301,Supplies & Services,Sports Development,Reimbursement,02/11/2016,193140,730.00,GREENWICH LEISURE LTD (PREV CARLISLE LEISURE),A00136,8,2016
Allerdale Borough Council,16301,Supplies & Services,KMAG Enhancement Activity,Reimbursement,02/11/2016,193141,"1,144.44",KESWICK MUSEUM & ART GALLERY,A00337,8,2016
Allerdale Borough Council,15501,Supplies & Services,Banking and Interest,Consultants Fees,02/11/2016,193142,"2,500.00",CAPITA TREASURY SOLUTIONS LTD (PREV SECTOR TREASURY SERV),A01832,8,2016
Allerdale Borough Council,20100,Third Party Payments,Museums,Budget-Partnership Services,02/11/2016,193143,"7,500.00",WORKINGTON HERITAGE GROUP LTD,A00339,8,2016
Allerdale Borough Council,10300,Employee Costs,Pensions,Budget-Pensions,09/11/2016,193144,"39,240.58",YOUR PENSION SERVICE - PRESTON,A01465,8,2016
Allerdale Borough Council,21150,Transfer Payments,Sellafield Social Impact Investment Fund,General Grants,02/11/2016,193145,"10,000.00",CUMBRIA CC,A00066,8,2016
Allerdale Borough Council,12103,Premises,Coastal Protection and Inland Flooding,Grounds Maintenance,02/11/2016,193146,430.00,"ALPHAJET DRAINS LTD T/A METRO ROD, CUMBRIA",C00164,8,2016
Allerdale Borough Council,16350,Supplies & Services,Museums,Miscellaneous Expenses,16/11/2016,193147,"1,750.00",ARTLINK TRANSPORT & STORAGE LTD,A02362,8,2016
Allerdale Borough Council,12301,Premises,Corporate Property Maintenance,Security,02/11/2016,193148,28.00,COMPASS SERVICES GROUP,A00839,8,2016
Allerdale Borough Council,10401,Employee Costs,Housing & Health Pay Group,Agency Staff Costs,23/11/2016,193149,193.60,HAYS SPECIALIST RECRUITMENT LTD,A00280,8,2016
Allerdale Borough Council,14202,Transport,Housing & Health Pay Group,Hire Car and petrol,02/11/2016,193150,62.80,ENTERPRISE RENT A CAR,A01367,8,2016
Allerdale Borough Council,10605,Employee Costs,Training,Travel,02/11/2016,193151,25.50,EILBECK RENTAL,A01161,8,2016
Allerdale Borough Council,10601,Employee Costs,Training,External Courses & Seminar Fees,02/11/2016,193152,60.00,CARLISLE CITY COUNCIL,A00161,8,2016
Allerdale Borough Council,12203,Premises,Public Convenience Cleaning,Plumbing and Heating Maintenance,02/11/2016,193153,970.00,Redacted information - included personal information ,C00008,8,2016
Allerdale Borough Council,10601,Employee Costs,Training,External Courses & Seminar Fees,02/11/2016,193154,"3,000.00",NORTHUMBRIA UNIVERSITY,A00491,8,2016
Allerdale Borough Council,54105,Capital Expenditure,Disabled Facilities Grants,Grants  Private Individuals (Capital),02/11/2016,193155,"1,465.00",DOLPHIN STAIRLIFTS CUMBRIA,X00107,8,2016
Allerdale Borough Council,54105,Capital Expenditure,Disabled Facilities Grants,Grants  Private Individuals (Capital),02/11/2016,193156,"7,000.00",W W BUILDERS LIMITED,X00212,8,2016
Allerdale Borough Council,54105,Capital Expenditure,Disabled Facilities Grants,Grants  Private Individuals (Capital),02/11/2016,193157,"3,975.00",DOLPHIN STAIRLIFTS CUMBRIA,X00107,8,2016
Allerdale Borough Council,14103,Transport,Insurances,Insurance Council Vehicles,01/11/2016,193158,500.00,BLUEFIN INSURANCE SERVICES LTD,A01716,8,2016
Allerdale Borough Council,15550,Supplies & Services,Licensing Service,General-Service Related Fees,02/11/2016,193159,24.00,ORBIS PROTECT LTD (PREV SITEXORBIS LIMITED),A00679,8,2016
Allerdale Borough Council,15507,Supplies & Services,Land Charges Service,Searches,02/11/2016,193160,"1,480.00",CUMBRIA CC,A00066,8,2016
Allerdale Borough Council,15505,Supplies & Services,Licensing Service,Licences,02/11/2016,193161,578.00,FIRPRESS PRINTERS,A00063,8,2016
Allerdale Borough Council,15550,Supplies & Services,Licensing Service,General-Service Related Fees,02/11/2016,193162,24.00,ORBIS PROTECT LTD (PREV SITEXORBIS LIMITED),A00679,8,2016
Allerdale Borough Council,10401,Employee Costs,Environmental Services Pay Group,Agency Staff Costs,09/11/2016,193163,"2,120.00",PRACTICUS LTD,A02237,8,2016
Allerdale Borough Council,10401,Employee Costs,Environmental Services Pay Group,Agency Staff Costs,16/11/2016,193164,"2,120.00",PRACTICUS LTD,A02237,8,2016
Allerdale Borough Council,51101,Capital Expenditure,Workington Hall Repairs,External Contractor Payments (Capital),02/11/2016,193165,375.00,MOSEDALE GILLATT,A01020,8,2016
Allerdale Borough Council,20150,Third Party Payments,Corporate Property Maintenance,General Partnership Service Fees,09/11/2016,193166,245.95,ORIAN SOLUTIONS LTD,A01814,8,2016
Allerdale Borough Council,15101,Supplies & Services,Corporate Property Maintenance,Equipment Costs,16/11/2016,193167,66.60,ARGOS BUSINESS SOLUTION-STORE COLLECTION,A00411,8,2016
Allerdale Borough Council,20101,Third Party Payments,Public Convenience Cleaning,Cleansing Contract,02/11/2016,193168,325.00,LINDOW HALL,A00165,8,2016
Allerdale Borough Council,15550,Supplies & Services,Licensing Service,General-Service Related Fees,23/11/2016,193169,24.00,ORBIS PROTECT LTD (PREV SITEXORBIS LIMITED),A00679,8,2016
Allerdale Borough Council,10501,Employee Costs,Corporate Recruitment,Advertising Vacancies,02/11/2016,193170,676.00,ASSOCIATION OF ELECTORAL ADMIN,A00189,8,2016
Allerdale Borough Council,14202,Transport,Housing & Health Pay Group,Hire Car and petrol,02/11/2016,193171,39.79,ENTERPRISE RENT A CAR,A01367,8,2016
Allerdale Borough Council,12101,Premises,Corporate Property Maintenance,External Maintenance & Decoration,02/11/2016,193172,880.00,ROBERT SCOTT LTD,X00160,8,2016
Allerdale Borough Council,12101,Premises,Corporate Property Maintenance,External Maintenance & Decoration,02/11/2016,193173,"1,880.00",ROBERT SCOTT LTD,X00160,8,2016
Allerdale Borough Council,20150,Third Party Payments,new Lighting Columns,General Partnership Service Fees,02/11/2016,193174,"17,157.00",CUMBRIA CC - GENERAL,A00066,8,2016
Allerdale Borough Council,12101,Premises,Corporate Property Maintenance,External Maintenance & Decoration,02/11/2016,193175,"2,880.00",ROBERT SCOTT LTD,X00160,8,2016
Allerdale Borough Council,15601,Supplies & Services,Benefits,Postage,02/11/2016,193176,"1,566.95",ROYAL MAIL LETTERS,X00021,8,2016
Allerdale Borough Council,15702,Supplies & Services,Off-street - Owned,Line Rentals,02/11/2016,193177,"1,048.36",COBALT TELEPHONE TECHNOLOGY,A01008,8,2016
Allerdale Borough Council,15501,Supplies & Services,Revenue,Consultants Fees,02/11/2016,193178,75.00,JACOBS (BAILIFFS),A00495,8,2016
Allerdale Borough Council,70104,VAT,Input VAT,VAT - 20%,02/11/2016,193179,0.00,MARSTON GROUP LTD,A02080,8,2016
Allerdale Borough Council,70104,VAT,Input VAT,VAT - 20%,02/11/2016,193180,0.00,MARSTON GROUP LTD,A02080,8,2016
Allerdale Borough Council,54104,Capital Expenditure,Housing Improvement Projects,Gen Grants Private Individuals (Captial),02/11/2016,193181,200.00,Redacted information - included personal information ,M00992,8,2016
Allerdale Borough Council,54104,Capital Expenditure,Housing Improvement Projects,Gen Grants Private Individuals (Captial),02/11/2016,193182,200.00,SEYMOUR FARMS,M00993,8,2016
Allerdale Borough Council,33117,Income,Off-street - Owned,Car Parks - Income from Machines,02/11/2016,193183,7.00,Redacted information - included personal information ,M00994,8,2016
Allerdale Borough Council,14203,Transport,Members Services,Mileage Allowances - Car,02/11/2016,193184,3.20,Redacted information - included personal information ,M00260,8,2016
Allerdale Borough Council,15101,Supplies & Services,Homelessness,Equipment Costs,02/11/2016,193200,45.44,ALLERDALE BOROUGH COUNCIL,X00034,8,2016
Allerdale Borough Council,15201,Supplies & Services,Leaders Services,Entertainment Of Visitors,02/11/2016,193201,69.87,ALLERDALE BOROUGH COUNCIL,X00034,8,2016
Allerdale Borough Council,15101,Supplies & Services,Public Convenience Cleaning,Equipment Costs,02/11/2016,193202,656.30,INSTOCK (CHANDLERS),A00050,8,2016
Allerdale Borough Council,14104,Transport,Asset Management Pay Group,Repairs & Maintenance,02/11/2016,193203,41.99,ENTERPRISE RENT A CAR,A01367,8,2016
Allerdale Borough Council,12303,Premises,Corporate Property Maintenance,Window Cleaning,09/11/2016,193204,470.00,BORDERBRITE LTD,C00155,8,2016
Allerdale Borough Council,12402,Premises,Corporate Property Maintenance,Electricity,02/11/2016,193205,22.50,BES COMMERCIAL ELECTRICITY LTD,X00243,8,2016
Allerdale Borough Council,12408,Premises,Corporate Property Maintenance,Water & Sewage,02/11/2016,193206,551.88,UNITED UTILITIES,X00011,8,2016
Allerdale Borough Council,12408,Premises,Corporate Property Maintenance,Water & Sewage,02/11/2016,193207,738.92,UNITED UTILITIES ,X00011,8,2016
Allerdale Borough Council,12408,Premises,Corporate Property Maintenance,Water & Sewage,02/11/2016,193208,355.16,UNITED UTILITIES ,X00011,8,2016
Allerdale Borough Council,12408,Premises,Public Convenience Cleaning,Water & Sewage,02/11/2016,193209,35.28,UNITED UTILITIES ,X00011,8,2016
Allerdale Borough Council,12408,Premises,Corporate Property Maintenance,Water & Sewage,02/11/2016,193210,131.96,UNITED UTILITIES ,X00011,8,2016
Allerdale Borough Council,16102,Supplies & Services,Sellafield Social Impact Investment Fund,Regeneration Initiatives,08/11/2016,193211,"12,957.94",WORKINGTON AFC,M00532,8,2016
Allerdale Borough Council,54104,Capital Expenditure,Housing Improvement Projects,Gen Grants Private Individuals (Captial),02/11/2016,193212,200.00,Redacted information - included personal information ,M00995,8,2016
Allerdale Borough Council,54104,Capital Expenditure,Housing Improvement Projects,Gen Grants Private Individuals (Captial),02/11/2016,193213,200.00,WF & H SHIELD,M00996,8,2016
Allerdale Borough Council,54104,Capital Expenditure,Housing Improvement Projects,Gen Grants Private Individuals (Captial),02/11/2016,193214,200.00,Redacted information - included personal information ,M00997,8,2016
Allerdale Borough Council,16150,Supplies & Services,Maryport Shop Front Improvements,General Promotions,02/11/2016,193215,"1,800.00",Redacted information - included personal information ,M00998,8,2016
Allerdale Borough Council,14101,Transport,Workington Nature Partnership,Vehicle Leasing,02/11/2016,193216,"3,600.00",DOBIES VAUXHALL,A00254,8,2016
Allerdale Borough Council,15512,Supplies & Services,Animal Welfare,Kennelling,02/11/2016,193217,"7,923.00",WHINMILL FARM CANINE CENTRE,A00117,8,2016
Allerdale Borough Council,15405,Supplies & Services,Recycling,Use of External Printers,09/11/2016,193218,193.00,FIRPRESS PRINTERS,A00063,8,2016
Allerdale Borough Council,15503,Supplies & Services,Human Resources Pay Group,Court and Tribunal Costs,02/11/2016,193219,350.00,MILBURNS SOLICITORS LTD,M00699,8,2016
Allerdale Borough Council,26000,Earmarked Reserves,Economic Regeneration,Budget-Expd funded from Reserve,02/11/2016,193220,"10,000.00",NORTHUMBERLAND COUNTY COUNCIL,A01867,8,2016
Allerdale Borough Council,14104,Transport,Asset Management Pay Group,Repairs & Maintenance,02/11/2016,193221,451.42,FCC ENVIRONMENT SERVICES (FOCSA),A00085,8,2016
Allerdale Borough Council,15201,Supplies & Services,Leaders Services,Entertainment Of Visitors,07/02/2017,193222,14.09,BARCLAYCARD COMMERCIAL ,X00207,8,2016
Allerdale Borough Council,15500,Supplies & Services,Benefits,Budget-Services,10/01/2017,193223,433.04,BARCLAYCARD COMMERCIAL,X00207,8,2016
Allerdale Borough Council,16350,Supplies & Services,Homelessness,Miscellaneous Expenses,09/11/2016,193224,393.73,HOME GROUP LTD,M00999,8,2016
Allerdale Borough Council,33110,Income,Land Charges Service,Search & Enquiry Fees General Income,09/11/2016,193225,90.00,BLEASDALE & CO SOLICITORS,M00250,8,2016
Allerdale Borough Council,15502,Supplies & Services,Legal Services,Land Registry Fees,25/11/2016,193226,57.00,HM LAND REGISTRY ,A00505,8,2016
Allerdale Borough Council,15502,Supplies & Services,Revenue,Land Registry Fees,25/11/2016,193227,3.00,HM LAND REGISTRY ,A00505,8,2016
Allerdale Borough Council,15502,Supplies & Services,Legal Services,Land Registry Fees,25/11/2016,193228,63.00,HM LAND REGISTRY ,A00505,8,2016
Allerdale Borough Council,15502,Supplies & Services,Legal Services,Land Registry Fees,25/11/2016,193229,36.00,HM LAND REGISTRY ,A00505,8,2016
Allerdale Borough Council,15502,Supplies & Services,Legal Services,Land Registry Fees,25/11/2016,193230,63.00,HM LAND REGISTRY ,A00505,8,2016
Allerdale Borough Council,15502,Supplies & Services,Town Centre Management,Land Registry Fees,25/11/2016,193231,66.00,HM LAND REGISTRY ,A00505,8,2016
Allerdale Borough Council,15502,Supplies & Services,Legal Services,Land Registry Fees,25/11/2016,193232,51.00,HM LAND REGISTRY ,A00505,8,2016
Allerdale Borough Council,15502,Supplies & Services,Legal Services,Land Registry Fees,25/11/2016,193233,54.00,HM LAND REGISTRY ,A00505,8,2016
Allerdale Borough Council,15502,Supplies & Services,Legal Services,Land Registry Fees,25/11/2016,193234,54.00,HM LAND REGISTRY ,A00505,8,2016
Allerdale Borough Council,15502,Supplies & Services,Legal Services,Land Registry Fees,01/11/2016,193235,60.00,HM LAND REGISTRY ,A00505,8,2016
Allerdale Borough Council,10203,Employee Costs,Chief Executive,Subsistence Allowance,10/01/2017,193236,12.00,BARCLAYCARD,X00207,8,2016
Allerdale Borough Council,26000,Earmarked Reserves,IT Services,Budget-Expd funded from Reserve,25/11/2016,193237,27.11,BARCLAYCARD,X00207,8,2016
Allerdale Borough Council,26000,Earmarked Reserves,New Technology Fund,Budget-Expd funded from Reserve,25/11/2016,193238,"1,380.77",BARCLAYCARD,X00207,8,2016
Allerdale Borough Council,26000,Earmarked Reserves,IT Services,Budget-Expd funded from Reserve,10/01/2017,193239,27.88,BARCLAYCARD,X00207,8,2016
Allerdale Borough Council,16300,Supplies & Services,Members Services,Budget-Miscellaneous,23/11/2016,193240,55.00,THE ASSOCIATION OF DEMOCRATIC SERVICES OFFICERS,A01129,8,2016
Allerdale Borough Council,15506,Supplies & Services,Communications and Marketing,Professional Services,09/11/2016,193241,154.90,JIM DAVIS PHOTOGRAPHY,A00627,8,2016
Allerdale Borough Council,10401,Employee Costs,Environmental Services Pay Group,Agency Staff Costs,23/11/2016,193242,"2,120.00",PRACTICUS LTD,A02237,8,2016
Allerdale Borough Council,14100,Transport,Mayoral Services,Budget-Council Vehicles (Non-capital),09/11/2016,193243,65.00,JOHN HOBAN TRAVEL LTD,A00016,8,2016
Allerdale Borough Council,51101,Capital Expenditure,New Leisure Facility,External Contractor Payments (Capital),09/11/2016,193244,750.00,INVASIVE WEEDS AGENCY LTD,C00153,8,2016
Allerdale Borough Council,12301,Premises,Corporate Property Maintenance,Security,09/11/2016,193245,112.17,CUMBRIAN SYSTEMS (WESTMORLAND SECURITY),C00062,8,2016
Allerdale Borough Council,15701,Supplies & Services,IT Costs (Allerdale Only),Installation Costs,23/11/2016,193246,"1,120.40",MILLGATE COMPUTER SYSTEMS,A02314,8,2016
Allerdale Borough Council,15808,Supplies & Services,IT Services,Computer Consumables,23/11/2016,193247,17.02,MILLGATE COMPUTER SYSTEMS,A02314,8,2016
Allerdale Borough Council,15506,Supplies & Services,Housing & Health Pay Group,Professional Services,23/11/2016,193248,"1,245.00",ET ENVIRONMENTAL CONSULTANCY LTD,A02170,8,2016
Allerdale Borough Council,15101,Supplies & Services,Corporate Property Maintenance,Equipment Costs,25/11/2016,193249,109.99,BOOKER CASH & CARRY,A01419,8,2016
Allerdale Borough Council,15506,Supplies & Services,Food and Occupational Health,Professional Services,09/11/2016,193250,112.77,PUBLIC HEALTH ENGLAND,A01839,8,2016
Allerdale Borough Council,15102,Supplies & Services,Off-street - Owned,Equipment Repair & Maintenance,09/11/2016,193251,116.00,Redacted information - included personal information ,C00008,8,2016
Allerdale Borough Council,16001,Supplies & Services,Banking and Interest,Bank Charges and Fees,23/11/2016,193252,15.27,ALLPAY.NET LIMITED,A00714,8,2016
Allerdale Borough Council,16001,Supplies & Services,Banking and Interest,Bank Charges and Fees,23/11/2016,193253,15.27,ALLPAY.NET LIMITED,A00714,8,2016
Allerdale Borough Council,16001,Supplies & Services,Banking and Interest,Bank Charges and Fees,23/11/2016,193254,60.09,ALLPAY.NET LIMITED,A00714,8,2016
Allerdale Borough Council,16001,Supplies & Services,Banking and Interest,Bank Charges and Fees,23/11/2016,193255,"2,812.86",ALLPAY.NET LIMITED,A00714,8,2016
Allerdale Borough Council,16001,Supplies & Services,Banking and Interest,Bank Charges and Fees,23/11/2016,193256,16.52,ALLPAY.NET LIMITED,A00714,8,2016
Allerdale Borough Council,16001,Supplies & Services,Banking and Interest,Bank Charges and Fees,23/11/2016,193257,20.43,ALLPAY.NET LIMITED,A00714,8,2016
Allerdale Borough Council,16001,Supplies & Services,Banking and Interest,Bank Charges and Fees,23/11/2016,193258,15.70,ALLPAY.NET LIMITED,A00714,8,2016
Allerdale Borough Council,16001,Supplies & Services,Banking and Interest,Bank Charges and Fees,23/11/2016,193259,22.60,ALLPAY.NET LIMITED,A00714,8,2016
Allerdale Borough Council,16001,Supplies & Services,Banking and Interest,Bank Charges and Fees,23/11/2016,193260,37.25,ALLPAY.NET LIMITED,A00714,8,2016
Allerdale Borough Council,16001,Supplies & Services,Banking and Interest,Bank Charges and Fees,23/11/2016,193261,31.22,ALLPAY.NET LIMITED,A00714,8,2016
Allerdale Borough Council,72104,Holding and Control Accounts,Debtor Control Account,Debtors (Control Account),09/11/2016,193262,36.00,Redacted information - included personal information ,M01000,8,2016
Allerdale Borough Council,54104,Capital Expenditure,Housing Improvement Projects,Gen Grants Private Individuals (Captial),09/11/2016,193263,200.00,Redacted information - included personal information ,M01001,8,2016
Allerdale Borough Council,54104,Capital Expenditure,Housing Improvement Projects,Gen Grants Private Individuals (Captial),09/11/2016,193264,350.00,CONISTON CONSULTANTS LTD,X00210,8,2016
Allerdale Borough Council,54105,Capital Expenditure,Disabled Facilities Grants,Grants  Private Individuals (Capital),09/11/2016,193265,"3,580.60",PARTNERSHIP IN PROPERTY MANAGEMENT LTD,X00120,8,2016
Allerdale Borough Council,54105,Capital Expenditure,Disabled Facilities Grants,Grants  Private Individuals (Capital),09/11/2016,193266,"7,284.79",Redacted information - included personal information ,X00251,8,2016
Allerdale Borough Council,15808,Supplies & Services,IT Services,Computer Consumables,23/11/2016,193268,88.13,MILLGATE COMPUTER SYSTEMS,A02314,8,2016
Allerdale Borough Council,15401,Supplies & Services,Solway Wetlands Project,General Stationery,23/11/2016,193269,10.95,YORKSHIRE PURCHASING ORGANISATION,A00747,8,2016
Allerdale Borough Council,15501,Supplies & Services,Recycling,Consultants Fees,09/11/2016,193270,990.00,WASTE CONSULTING LLP,A02377,8,2016
Allerdale Borough Council,15401,Supplies & Services,Building Control - Chargeable,General Stationery,09/11/2016,193271,58.33,HEATONS OFFICE SOLUTION (PREV LAKELAND/INTEGRITY),A00069,8,2016
Allerdale Borough Council,15501,Supplies & Services,Estates,Consultants Fees,09/11/2016,193272,"1,840.00",JAMES ANDREW RECRUITMENT SOLUTIONS LTD,A02339,8,2016
Allerdale Borough Council,15506,Supplies & Services,Communications and Marketing,Professional Services,09/11/2016,193273,84.90,JIM DAVIS PHOTOGRAPHY,A00627,8,2016
Allerdale Borough Council,15405,Supplies & Services,Electoral Registration,Use of External Printers,09/11/2016,193274,778.64,PRINT IMAGE NETWORK LIMITED,A01782,8,2016
Allerdale Borough Council,15405,Supplies & Services,Electoral Registration,Use of External Printers,09/11/2016,193275,"1,091.09",PRINT IMAGE NETWORK LIMITED,A01127,8,2016
Allerdale Borough Council,52107,Capital Expenditure,Evolution Centre Food Bank Works,Removal Costs (Capital),09/11/2016,193276,668.00,Redacted information - included personal information ,C00008,8,2016
Allerdale Borough Council,12403,Premises,Homelessness,Gas,16/11/2016,193277,81.00,MEPOS LIMITED,A01286,8,2016
Allerdale Borough Council,26000,Earmarked Reserves,Shared Revs & Bens Projects,Budget-Expd funded from Reserve,09/11/2016,193278,955.76,MORGAN HUNT PUBLIC SECTOR,A00725,8,2016
Allerdale Borough Council,10401,Employee Costs,Environmental Services Pay Group,Agency Staff Costs,23/11/2016,193279,"2,650.00",PRACTICUS LTD,A02237,8,2016
Allerdale Borough Council,51101,Capital Expenditure,New Leisure Facility,External Contractor Payments (Capital),09/11/2016,193280,"10,719.46",PICK EVERARD,A02007,8,2016
Allerdale Borough Council,15501,Supplies & Services,Planning and Development,Consultants Fees,09/11/2016,193281,"1,850.00",KEPPIE MASSIE,A01574,8,2016
Allerdale Borough Council,10401,Employee Costs,Elections,Agency Staff Costs,09/11/2016,193282,"8,941.60",ASSOCIATION OF ELECTORAL ADMIN,A00189,8,2016
Allerdale Borough Council,10401,Employee Costs,Elections,Agency Staff Costs,30/11/2016,193283,"6,279.70",ASSOCIATION OF ELECTORAL ADMIN,A00189,8,2016
Allerdale Borough Council,15100,Supplies & Services,Pest Control,"Budget-Equipment, Furniture & Materials",09/11/2016,193284,20.00,BASIS (REGISTRATION) LTD,A01568,8,2016
Allerdale Borough Council,16102,Supplies & Services,LEP Flood Recovery Events Funding,Regeneration Initiatives,09/11/2016,193285,"4,000.00",NATIONAL TRUST,A01009,8,2016
Allerdale Borough Council,52107,Capital Expenditure,Evolution Centre Food Bank Works,Removal Costs (Capital),09/11/2016,193286,210.00,W G MACKAY LTD,A01711,8,2016
Allerdale Borough Council,15101,Supplies & Services,Public Building Cleaning,Equipment Costs,09/11/2016,193287,154.44,WF HYGIENE & CLEANING SUPPLIES,A01794,8,2016
Allerdale Borough Council,14104,Transport,Asset Management Pay Group,Repairs & Maintenance,09/11/2016,193288,33.33,GOODFELLOW & SONS,A00031,8,2016
Allerdale Borough Council,16102,Supplies & Services,Town Centre Management,Regeneration Initiatives,09/11/2016,193289,135.00,POD (NORTH WEST) LIMITED,A01977,8,2016
Allerdale Borough Council,10401,Employee Costs,Building Control - Chargeable,Agency Staff Costs,09/11/2016,193290,"3,465.00",A&H BUILDING CONTROL CONSULTANTS LTD,A02318,8,2016
Allerdale Borough Council,15401,Supplies & Services,Document Management Pay Group,General Stationery,23/11/2016,193291,526.15,LYRECO,A00043,8,2016
Allerdale Borough Council,15401,Supplies & Services,Document Management Pay Group,General Stationery,23/11/2016,193292,374.88,LYRECO,A00043,8,2016
Allerdale Borough Council,10401,Employee Costs,Shared IT Services Pay Group,Agency Staff Costs,09/11/2016,193293,503.28,ADECCO RECRUITMENT,A00188,8,2016
Allerdale Borough Council,10401,Employee Costs,Customer Services Pay Group,Agency Staff Costs,09/11/2016,193294,300.57,ADECCO RECRUITMENT,A00188,8,2016
Allerdale Borough Council,15508,Supplies & Services,IT Services,Subscriptions,23/11/2016,193295,110.00,SOCITM LTD,A00168,8,2016
Allerdale Borough Council,15508,Supplies & Services,IT Services,Subscriptions,23/11/2016,193296,925.00,SOCITM LTD,A00168,8,2016
Allerdale Borough Council,10605,Employee Costs,Members Services,Travel,09/11/2016,193297,120.00,KEN ROUTLEDGE TRAVEL LTD,A00192,8,2016
Allerdale Borough Council,10605,Employee Costs,Training,Travel,09/11/2016,193298,25.50,EILBECK RENTAL,A01161,8,2016
Allerdale Borough Council,15811,Supplies & Services,IT Services,Software Maintenance,16/11/2016,193299,264.99,SAGE (UK) LTD ,A01911,8,2016
Allerdale Borough Council,15550,Supplies & Services,Estates,General-Service Related Fees,09/11/2016,193300,750.00,KESWICK BREWERY,M00875,8,2016
Allerdale Borough Council,15501,Supplies & Services,Benefits,Consultants Fees,09/11/2016,193301,150.00,CARLISLE CITY COUNCIL,A00161,8,2016
Allerdale Borough Council,15401,Supplies & Services,Building Control - Chargeable,General Stationery,16/11/2016,193302,9.55,HEATONS OFFICE SOLUTION ,A00069,8,2016
Allerdale Borough Council,15506,Supplies & Services,Estates,Professional Services,09/11/2016,193303,"3,250.00",WALTON GOODLAND LTD,A01226,8,2016
Allerdale Borough Council,52107,Capital Expenditure,Evolution Centre Food Bank Works,Removal Costs (Capital),09/11/2016,193304,"1,004.00",Redacted information - included personal information ,C00008,8,2016
Allerdale Borough Council,52107,Capital Expenditure,Evolution Centre Food Bank Works,Removal Costs (Capital),09/11/2016,193305,"4,898.97",DESIGN GRID LTD,A01627,8,2016
Allerdale Borough Council,12202,Premises,Corporate Property Maintenance,Electrical Repairs and Service,16/11/2016,193306,"1,727.00",J & J ELECTRICAL (CUMBRIA) LTD,C00038,8,2016
Allerdale Borough Council,10605,Employee Costs,Training,Travel,09/11/2016,193307,25.50,EILBECK RENTAL,A01161,8,2016
Allerdale Borough Council,52107,Capital Expenditure,Evolution Centre Food Bank Works,Removal Costs (Capital),16/11/2016,193308,"4,582.13",J & J ELECTRICAL (CUMBRIA) LTD,C00038,8,2016
Allerdale Borough Council,15405,Supplies & Services,Members Services,Use of External Printers,16/11/2016,193309,450.00,FIRPRESS PRINTERS,A00063,8,2016
Allerdale Borough Council,15101,Supplies & Services,Public Convenience Cleaning,Equipment Costs,16/11/2016,193310,104.50,INSTOCK (CHANDLERS),A00050,8,2016
Allerdale Borough Council,15506,Supplies & Services,Sports Development,Professional Services,09/11/2016,193311,105.00,SOLWAY COMMUNITY TECHNOLOGY COLLEGE (SPORTS HALL),M00118,8,2016
Allerdale Borough Council,16150,Supplies & Services,"The Hub, Workington Town Centre",General Promotions,09/11/2016,193312,507.04,UPGRADE OPTIONS LTD,A02316,8,2016
Allerdale Borough Council,15506,Supplies & Services,Sports Development,Professional Services,09/11/2016,193313,140.00,THE SELF COACH,A02328,8,2016
Allerdale Borough Council,15506,Supplies & Services,Sports Development,Professional Services,09/11/2016,193314,140.00,THE SELF COACH,A02328,8,2016
Allerdale Borough Council,15506,Supplies & Services,Sports Development,Professional Services,09/11/2016,193315,175.00,Redacted information - included personal information ,A02344,8,2016
Allerdale Borough Council,15506,Supplies & Services,Sports Development,Professional Services,09/11/2016,193316,140.00,Redacted information - included personal information ,A02344,8,2016
Allerdale Borough Council,15506,Supplies & Services,Sports Development,Professional Services,09/11/2016,193317,84.00,SOLWAY COMMUNITY TECHNOLOGY COLLEGE (SPORTS HALL),M00118,8,2016
Allerdale Borough Council,15203,Supplies & Services,Solway Coast AONB Core Funding,Catering Costs and Consumables,09/11/2016,193318,18.42,THE GOLF HOTEL,A00749,8,2016
Allerdale Borough Council,12302,Premises,Solway Coast AONB Core Funding,Building Cleaning,09/11/2016,193319,99.31,ORIAN SOLUTIONS LTD,A01814,8,2016
Allerdale Borough Council,15405,Supplies & Services,Arts Development,Use of External Printers,09/11/2016,193320,25.00,FIRPRESS PRINTERS,A00063,8,2016
Allerdale Borough Council,15405,Supplies & Services,Arts Development,Use of External Printers,09/11/2016,193321,65.00,FIRPRESS PRINTERS,A00063,8,2016
Allerdale Borough Council,15101,Supplies & Services,Corporate Property Maintenance,Equipment Costs,01/11/2016,193322,135.92,BOOKER CASH & CARRY ,A01419,8,2016
Allerdale Borough Council,15500,Supplies & Services,Revenue,Budget-Services,09/11/2016,193323,451.16,CUMBRIA MAILING SERVICE,A00086,8,2016
Allerdale Borough Council,15500,Supplies & Services,Revenue,Budget-Services,09/11/2016,193324,"1,102.59",CUMBRIA MAILING SERVICE,A00086,8,2016
Allerdale Borough Council,15808,Supplies & Services,Multi-functional Printers,Computer Consumables,30/11/2016,193325,221.50,ANTALIS LIMITED,A00122,8,2016
Allerdale Borough Council,12101,Premises,Car Parks Inspection & Maintenance,External Maintenance & Decoration,16/11/2016,193326,"1,951.70",GORDON GRAHAM ROADMARKINGS LTD,C00165,8,2016
Allerdale Borough Council,12402,Premises,Homelessness,Electricity,09/11/2016,193327,46.42,OPUS ENERGY,X00226,8,2016
Allerdale Borough Council,34150,Income,Benefits,General Recovery of Other Costs-Income,09/11/2016,193328,7.60,ROSSENDALES LTD,A00964,8,2016
Allerdale Borough Council,12402,Premises,Homelessness,Electricity,09/11/2016,193329,44.76,OPUS ENERGY,X00226,8,2016
Allerdale Borough Council,12402,Premises,Homelessness,Electricity,09/11/2016,193330,-21.32,OPUS ENERGY,X00226,8,2016
Allerdale Borough Council,12402,Premises,Homelessness,Electricity,09/11/2016,193331,-10.48,OPUS ENERGY,X00226,8,2016
Allerdale Borough Council,12402,Premises,Homelessness,Electricity,09/11/2016,193332,128.06,OPUS ENERGY,X00226,8,2016
Allerdale Borough Council,20150,Third Party Payments,Managed Car Parks,General Partnership Service Fees,09/11/2016,193333,"79,681.90",E H BOOTH & CO LIMITED,A00919,8,2016
Allerdale Borough Council,15804,Supplies & Services,IT Services,Computer Data Lines B.T.,09/11/2016,193334,"4,015.50",BRITISH TELECOMMUNICATIONS,X00004,8,2016
Allerdale Borough Council,15704,Supplies & Services,IT Services,Mobile Phones,09/11/2016,193335,796.13,VODAFONE,A00551,8,2016
Allerdale Borough Council,12403,Premises,Corporate Property Maintenance,Gas,09/11/2016,193336,75.81,BRITISH GAS,X00039,8,2016
Allerdale Borough Council,12402,Premises,Corporate Property Maintenance,Electricity,09/11/2016,193337,24.49,BRITISH GAS,X00039,8,2016
Allerdale Borough Council,15703,Supplies & Services,IT Services,Call Charges,23/11/2016,193338,49.44,VODAFONE (PREV CABLE & WIRELESS),A00934,8,2016
Allerdale Borough Council,12408,Premises,Corporate Property Maintenance,Water & Sewage,09/11/2016,193339,54.82,UNITED UTILITIES ,X00011,8,2016
Allerdale Borough Council,12408,Premises,Public Convenience Cleaning,Water & Sewage,09/11/2016,193340,202.20,UNITED UTILITIES,X00011,8,2016
Allerdale Borough Council,70104,VAT,Input VAT,VAT - 20%,09/11/2016,193341,0.00,ROSSENDALES LTD,A00964,8,2016
Allerdale Borough Council,70104,VAT,Input VAT,VAT - 20%,09/11/2016,193342,0.00,ROSSENDALES LTD,A00964,8,2016
Allerdale Borough Council,70104,VAT,Input VAT,VAT - 20%,09/11/2016,193343,0.00,ROSSENDALES LTD,A00964,8,2016
Allerdale Borough Council,12402,Premises,Corporate Property Maintenance,Electricity,09/11/2016,193344,229.20,N POWER ,X00015,8,2016
Allerdale Borough Council,12403,Premises,Corporate Property Maintenance,Gas,09/11/2016,193345,797.28,BRITISH GAS,X00039,8,2016
Allerdale Borough Council,70104,VAT,Input VAT,VAT - 20%,16/11/2016,193346,0.00,ROSSENDALES LTD,A00964,8,2016
Allerdale Borough Council,70104,VAT,Input VAT,VAT - 20%,16/11/2016,193347,0.00,ROSSENDALES LTD,A00964,8,2016
Allerdale Borough Council,70104,VAT,Input VAT,VAT - 20%,16/11/2016,193348,0.00,ROSSENDALES LTD,A00964,8,2016
Allerdale Borough Council,12403,Premises,Corporate Property Maintenance,Gas,09/11/2016,193349,158.37,BRITISH GAS,X00039,8,2016
Allerdale Borough Council,15600,Supplies & Services,Electoral Registration,Budget-Postal Services,09/11/2016,193350,68.85,ROYAL MAIL LETTERS,X00021,8,2016
Allerdale Borough Council,12402,Premises,Homelessness,Electricity,09/11/2016,193351,-170.40,OPUS ENERGY,X00226,8,2016
Allerdale Borough Council,70104,VAT,Input VAT,VAT - 20%,09/11/2016,193352,0.00,ROSSENDALES LTD,A00964,8,2016
Allerdale Borough Council,70104,VAT,Input VAT,VAT - 20%,09/11/2016,193353,0.00,ROSSENDALES LTD,A00964,8,2016
Allerdale Borough Council,70104,VAT,Input VAT,VAT - 20%,09/11/2016,193354,0.00,ROSSENDALES LTD,A00964,8,2016
Allerdale Borough Council,15501,Supplies & Services,Revenue,Consultants Fees,09/11/2016,193355,75.00,ROSSENDALES LTD,A00964,8,2016
Allerdale Borough Council,70104,VAT,Input VAT,VAT - 20%,09/11/2016,193356,0.00,ROSSENDALES LTD,A00964,8,2016
Allerdale Borough Council,70104,VAT,Input VAT,VAT - 20%,09/11/2016,193357,0.00,ROSSENDALES LTD,A00964,8,2016
Allerdale Borough Council,70104,VAT,Input VAT,VAT - 20%,16/11/2016,193358,0.00,JACOBS (BAILIFFS),A00495,8,2016
Allerdale Borough Council,15804,Supplies & Services,IT Services,Computer Data Lines B.T.,30/11/2016,193359,"1,668.54",VODAFONE ,A00934,8,2016
Allerdale Borough Council,15303,Supplies & Services,Food and Occupational Health,Laundry,09/11/2016,193360,104.92,BERENDSEN UK LTD,A00027,8,2016
Allerdale Borough Council,10401,Employee Costs,Housing & Health Pay Group,Agency Staff Costs,23/11/2016,193361,193.60,HAYS SPECIALIST RECRUITMENT LTD,A00280,8,2016
Allerdale Borough Council,15506,Supplies & Services,Environmental Protection,Professional Services,23/11/2016,193362,78.00,UNITED UTILITIES PLC,A01657,8,2016
Allerdale Borough Council,15506,Supplies & Services,Environmental Protection,Professional Services,09/11/2016,193363,55.00,Redacted information - included personal information ,C00008,8,2016
Allerdale Borough Council,15101,Supplies & Services,Recycling,Equipment Costs,23/11/2016,193364,"14,454.96",BPI RECYCLED PRODUCTS,A00318,8,2016
Allerdale Borough Council,15101,Supplies & Services,Emergency Planning,Equipment Costs,23/11/2016,193365,653.65,KELTIC,A00017,8,2016
Allerdale Borough Council,12100,Premises,Parks and Grounds Maintenance,Budget-External Maintenance & Decoration,23/11/2016,193366,157.50,ISS WATERERS LANDSCAPE,C00044,8,2016
Allerdale Borough Council,15501,Supplies & Services,Homelessness,Consultants Fees,09/11/2016,193367,78.20,BEECHWOOD GROUP PRACTICE,A00533,8,2016
Allerdale Borough Council,12405,Premises,Homelessness,Rentals and Lease Charges,09/11/2016,193368,"1,041.95",HOME GROUP LTD,A00423,8,2016
Allerdale Borough Council,15513,Supplies & Services,Parks Development,Subcontractors - General,23/11/2016,193369,"2,120.00",ISS WATERERS LANDSCAPE,C00044,8,2016
Allerdale Borough Council,10401,Employee Costs,Housing & Health Pay Group,Agency Staff Costs,07/12/2016,193370,242.00,HAYS SPECIALIST RECRUITMENT LTD,A00280,8,2016
Allerdale Borough Council,15102,Supplies & Services,Recycling,Equipment Repair & Maintenance,09/11/2016,193371,736.20,Redacted information - included personal information ,A00176,8,2016
Allerdale Borough Council,15101,Supplies & Services,Mayoral Services,Equipment Costs,09/11/2016,193372,92.50,PBA20 POPPY APPEAL WORKINGTON RBL,M00593,8,2016
Allerdale Borough Council,12400,Premises,Multi-storey Car Park,Budget-Building and Utility Charges,09/11/2016,193373,"72,574.91",SCOOP AM LLP,A02086,8,2016
Allerdale Borough Council,34150,Income,Benefits,General Recovery of Other Costs-Income,09/11/2016,193374,8.94,ROSSENDALES LTD,A00964,8,2016
Allerdale Borough Council,15600,Supplies & Services,Electoral Registration,Budget-Postal Services,09/11/2016,193375,800.45,ROYAL MAIL LETTERS,X00021,8,2016
Allerdale Borough Council,34150,Income,Benefits,General Recovery of Other Costs-Income,30/11/2016,193376,5.70,ROSSENDALES LTD,A00964,8,2016
Allerdale Borough Council,34150,Income,Benefits,General Recovery of Other Costs-Income,23/11/2016,193377,4.00,ROSSENDALES LTD,A00964,8,2016
Allerdale Borough Council,15600,Supplies & Services,Electoral Registration,Budget-Postal Services,09/11/2016,193378,515.57,ROYAL MAIL LETTERS,X00021,8,2016
Allerdale Borough Council,33112,Income,Planning and Development,Planning Fees Income,09/11/2016,193379,385.00,Redacted information - included personal information ,M01002,8,2016
Allerdale Borough Council,33112,Income,Planning and Development,Planning Fees Income,09/11/2016,193380,213.00,Redacted information - included personal information ,M01003,8,2016
Allerdale Borough Council,20110,Third Party Payments,Trade Waste,Other Local Authorities,09/11/2016,193381,"40,054.91",CUMBRIA CC ,A00066,8,2016
Allerdale Borough Council,15102,Supplies & Services,Off-street - Owned,Equipment Repair & Maintenance,16/11/2016,193382,664.95,GUNNEBO UK LTD,A00663,8,2016
Allerdale Borough Council,16350,Supplies & Services,Off-street - Owned,Miscellaneous Expenses,30/11/2016,193383,875.00,BRITISH PARKING ASSOCIATION,A00468,8,2016
Allerdale Borough Council,51101,Capital Expenditure,Workington Hall Repairs,External Contractor Payments (Capital),09/11/2016,193384,"19,615.20",HISTORIC PROPERTY RESTORATIONS LIMITED,C00150,8,2016
Allerdale Borough Council,15302,Supplies & Services,Asset Management Pay Group,Protective Clothing,23/11/2016,193385,116.70,KELTIC,A00017,8,2016
Allerdale Borough Council,12203,Premises,Corporate Property Maintenance,Plumbing and Heating Maintenance,09/11/2016,193386,"1,960.00",ROBERT SCOTT LTD,X00160,8,2016
Allerdale Borough Council,12203,Premises,Corporate Property Maintenance,Plumbing and Heating Maintenance,09/11/2016,193387,"1,650.00",ROBERT SCOTT LTD,X00160,8,2016
Allerdale Borough Council,15101,Supplies & Services,Public Convenience Cleaning,Equipment Costs,16/11/2016,193388,320.76,INSTOCK (CHANDLERS),A00050,8,2016
Allerdale Borough Council,12402,Premises,Corporate Property Maintenance,Electricity,09/11/2016,193389,"-1,897.01",N POWER,X00015,8,2016
Allerdale Borough Council,12402,Premises,Corporate Property Maintenance,Electricity,09/11/2016,193390,"-1,012.47",N POWER,X00015,8,2016
Allerdale Borough Council,12402,Premises,Corporate Property Maintenance,Electricity,09/11/2016,193391,"1,434.14",N POWER,X00015,8,2016
Allerdale Borough Council,12402,Premises,Corporate Property Maintenance,Electricity,09/11/2016,193392,"1,416.76",N POWER,X00015,8,2016
Allerdale Borough Council,12402,Premises,Corporate Property Maintenance,Electricity,09/11/2016,193393,"1,664.02",N POWER,X00015,8,2016
Allerdale Borough Council,12402,Premises,Footways,Electricity,09/11/2016,193394,"4,858.34",N POWER,X00015,8,2016
Allerdale Borough Council,51101,Capital Expenditure,Workington Hall Repairs,External Contractor Payments (Capital),09/11/2016,193395,"-3,305.20",HISTORIC PROPERTY RESTORATIONS LIMITED,C00150,8,2016
Allerdale Borough Council,12408,Premises,Public Convenience Cleaning,Water & Sewage,09/11/2016,193396,"1,101.20",UNITED UTILITIES,X00011,8,2016
Allerdale Borough Council,10110,Employee Costs,Commissioning Support Pay Group,Salary Sacrifice,09/11/2016,193397,316.30,TUSKERDIRECT LTD,A02186,8,2016
Allerdale Borough Council,15401,Supplies & Services,Building Control - Chargeable,General Stationery,09/11/2016,193398,58.33,HEATONS OFFICE SOLUTION (PREV LAKELAND/INTEGRITY),A00069,8,2016
Allerdale Borough Council,15401,Supplies & Services,Building Control - Chargeable,General Stationery,09/11/2016,193399,-58.33,HEATONS OFFICE SOLUTION (PREV LAKELAND/INTEGRITY),A00069,8,2016
Allerdale Borough Council,15804,Supplies & Services,Shared Revs & Bens IT Costs,Computer Data Lines B.T.,16/11/2016,193400,"40,673.10",CARLISLE CITY COUNCIL,A00161,8,2016
Allerdale Borough Council,15506,Supplies & Services,Shared Revs & Bens IT Costs,Professional Services,16/11/2016,193401,"2,235.73",CARLISLE CITY COUNCIL,A00161,8,2016
Allerdale Borough Council,12405,Premises,Homelessness,Rentals and Lease Charges,16/11/2016,193402,173.44,HOME GROUP LTD,A00423,8,2016
Allerdale Borough Council,51101,Capital Expenditure,New Leisure Facility,External Contractor Payments (Capital),16/11/2016,193403,"3,500.00",PICK EVERARD,A02007,8,2016
Allerdale Borough Council,15501,Supplies & Services,Estates,Consultants Fees,16/11/2016,193404,"1,840.00",JAMES ANDREW RECRUITMENT SOLUTIONS LTD,A02339,8,2016
Allerdale Borough Council,15101,Supplies & Services,Corporate Property Maintenance,Equipment Costs,16/11/2016,193405,494.64,DESIGN GRID LTD,A01627,8,2016
Allerdale Borough Council,20101,Third Party Payments,Recycling,Cleansing Contract,16/11/2016,193406,235.16,CUMBRIA WASTE MANAGEMENT LTD,A01304,8,2016
Allerdale Borough Council,20101,Third Party Payments,Recycling,Cleansing Contract,16/11/2016,193407,274.86,CUMBRIA WASTE MANAGEMENT LTD,A01304,8,2016
Allerdale Borough Council,20101,Third Party Payments,Recycling,Cleansing Contract,16/11/2016,193408,"2,790.00",CUMBRIA WASTE MANAGEMENT LTD,A01304,8,2016
Allerdale Borough Council,20101,Third Party Payments,Recycling,Cleansing Contract,16/11/2016,193409,"2,727.25",CUMBRIA WASTE MANAGEMENT LTD,A01304,8,2016
Allerdale Borough Council,20101,Third Party Payments,Recycling,Cleansing Contract,16/11/2016,193410,"2,973.93",CUMBRIA WASTE MANAGEMENT LTD,A01304,8,2016
Allerdale Borough Council,20101,Third Party Payments,Recycling,Cleansing Contract,16/11/2016,193411,"2,611.58",CUMBRIA WASTE MANAGEMENT LTD,A01304,8,2016
Allerdale Borough Council,20101,Third Party Payments,Recycling,Cleansing Contract,16/11/2016,193412,"2,376.44",CUMBRIA WASTE MANAGEMENT LTD,A01304,8,2016
Allerdale Borough Council,20101,Third Party Payments,Recycling,Cleansing Contract,16/11/2016,193413,"1,134.02",CUMBRIA WASTE MANAGEMENT LTD,A01304,8,2016
Allerdale Borough Council,15506,Supplies & Services,Environmental Protection,Professional Services,16/11/2016,193414,"6,974.00",BEEWARE PEST & ENVIRONMENTAL SERVICES LTD,A02375,8,2016
Allerdale Borough Council,10110,Employee Costs,Busy Bees Childcare Scheme,Salary Sacrifice,16/11/2016,193415,84.34,COMPUTERSHARE VOUCHER SERVICES,A00991,8,2016
Allerdale Borough Council,10110,Employee Costs,Busy Bees Childcare Scheme,Salary Sacrifice,16/11/2016,193416,"1,533.50",COMPUTERSHARE VOUCHER SERVICES,A00991,8,2016
Allerdale Borough Council,15501,Supplies & Services,Environmental Protection,Consultants Fees,23/11/2016,193417,"2,570.00",COLE JARMAN LTD,A02312,8,2016
Allerdale Borough Council,26000,Earmarked Reserves,Shared Revs & Bens Projects,Budget-Expd funded from Reserve,16/11/2016,193418,975.00,MORGAN HUNT PUBLIC SECTOR,A00725,8,2016
Allerdale Borough Council,12201,Premises,Homelessness,Internal Maintenance,16/11/2016,193419,33.50,DERWENT & SOLWAY - YOUR HOUSING,A00219,8,2016
Allerdale Borough Council,15506,Supplies & Services,Legal Services,Professional Services,16/11/2016,193420,325.00,C&D AUCTION MARTS LTD,M01004,8,2016
Allerdale Borough Council,16102,Supplies & Services,Sellafield Social Impact Investment Fund,Regeneration Initiatives,16/11/2016,193421,"3,700.00",Redacted information - included personal information ,M00601,8,2016
Allerdale Borough Council,15502,Supplies & Services,Legal Services,Land Registry Fees,08/11/2016,193422,48.00,HM LAND REGISTRY,A00505,8,2016
Allerdale Borough Council,16150,Supplies & Services,Maryport Shop Front Improvements,General Promotions,16/11/2016,193423,900.00,Redacted information - included personal information ,M01005,8,2016
Allerdale Borough Council,16150,Supplies & Services,Maryport Shop Front Improvements,General Promotions,16/11/2016,193424,900.00,Redacted information - included personal information ,M01006,8,2016
Allerdale Borough Council,16150,Supplies & Services,Maryport Shop Front Improvements,General Promotions,16/11/2016,193425,900.00,Redacted information - included personal information ,M01007,8,2016
Allerdale Borough Council,15101,Supplies & Services,Solway Coast AONB Core Funding,Equipment Costs,07/02/2017,193426,22.49,BARCLAYCARD COMMERCIAL,X00207,8,2016
Allerdale Borough Council,16350,Supplies & Services,Homelessness,Miscellaneous Expenses,16/11/2016,193427,281.66,DERWENT MANAGEMENT SERVICES,M01008,8,2016
Allerdale Borough Council,16150,Supplies & Services,Maryport Shop Front Improvements,General Promotions,16/11/2016,193428,"1,197.00",Redacted information - included personal information ,M01009,8,2016
Allerdale Borough Council,20150,Third Party Payments,Parking Services Pay Group,General Partnership Service Fees,23/11/2016,193429,177.20,PATROL,A00952,8,2016
Allerdale Borough Council,15811,Supplies & Services,Parking Services Pay Group,Software Maintenance,23/11/2016,193430,106.43,RELIANCE HIGH-TECH LTD,C00123,8,2016
Allerdale Borough Council,10500,Employee Costs,Corporate Recruitment,Budget-Recruitment Expenses,23/11/2016,193431,"1,459.60",GATENBYSANDERSON LIMITED,A01953,8,2016
Allerdale Borough Council,73102,Holding and Control Accounts,Returnable Deposits on Commercial Prop,Holding Accounts General - Expenditure,16/11/2016,193432,54.46,ALLERDALE,A00342,8,2016
Allerdale Borough Council,73102,Holding and Control Accounts,Returnable Deposits on Commercial Prop,Holding Accounts General - Expenditure,11/01/2017,193433,529.54,VULCANS PARK CAFE,M01010,8,2016
Allerdale Borough Council,12402,Premises,Corporate Property Maintenance,Electricity,16/11/2016,193434,"2,828.71",N POWER ,X00015,8,2016
Allerdale Borough Council,20150,Third Party Payments,Managed Car Parks,General Partnership Service Fees,16/11/2016,193435,"37,381.05",MARYPORT HARBOUR & MARINA LIMITED,A00186,8,2016
Allerdale Borough Council,70104,VAT,Input VAT,VAT - 20%,23/11/2016,193436,0.00,EQUITA LTD,A00565,8,2016
Allerdale Borough Council,70104,VAT,Input VAT,VAT - 20%,16/11/2016,193437,0.00,EQUITA LTD,A00565,8,2016
Allerdale Borough Council,20150,Third Party Payments,Parksafe Contract,General Partnership Service Fees,16/11/2016,193438,"42,982.40",PARKSAFE,A00647,8,2016
Allerdale Borough Council,70104,VAT,Input VAT,VAT - 20%,23/11/2016,193439,0.00,MARSTON GROUP LTD,A02080,8,2016
Allerdale Borough Council,20150,Third Party Payments,Parksafe Contract,General Partnership Service Fees,23/11/2016,193440,"54,277.20",PARKSAFE,A00647,8,2016
Allerdale Borough Council,15702,Supplies & Services,Off-street - Owned,Line Rentals,23/11/2016,193441,"1,306.92",COBALT TELEPHONE TECHNOLOGY,A01008,8,2016
Allerdale Borough Council,12402,Premises,Corporate Property Maintenance,Electricity,16/11/2016,193442,86.06,EON ,X00016,8,2016
Allerdale Borough Council,20101,Third Party Payments,Recycling,Cleansing Contract,16/11/2016,193443,-44.00,CUMBRIA WASTE MANAGEMENT LTD,A01304,8,2016
Allerdale Borough Council,12403,Premises,Corporate Property Maintenance,Gas,16/11/2016,193444,71.79,BRITISH GAS,X00040,8,2016
Allerdale Borough Council,12402,Premises,Corporate Property Maintenance,Electricity,16/11/2016,193445,90.73,SOUTHERN ELECTRIC ,X00018,8,2016
Allerdale Borough Council,12408,Premises,Public Convenience Cleaning,Water & Sewage,16/11/2016,193446,359.56,UNITED UTILITIES ,X00011,8,2016
Allerdale Borough Council,12408,Premises,Public Convenience Cleaning,Water & Sewage,16/11/2016,193447,210.64,UNITED UTILITIES ,X00011,8,2016
Allerdale Borough Council,12408,Premises,Corporate Property Maintenance,Water & Sewage,16/11/2016,193448,10.39,UNITED UTILITIES ,X00011,8,2016
Allerdale Borough Council,12408,Premises,Public Convenience Cleaning,Water & Sewage,16/11/2016,193449,671.48,UNITED UTILITIES ,X00011,8,2016
Allerdale Borough Council,12408,Premises,Public Convenience Cleaning,Water & Sewage,16/11/2016,193450,"1,424.56",UNITED UTILITIES ,X00011,8,2016
Allerdale Borough Council,15103,Supplies & Services,KMAG Enhancement Activity,Purchase of Materials,16/11/2016,193451,34.19,YORKSHIRE PURCHASING ORGANISATION,A00747,8,2016
Allerdale Borough Council,12305,Premises,Car Parks Inspection & Maintenance,Inspections and Services,15/11/2016,193452,-271.00,ASSA ABLOY ENTRANCE SYSTEMS LTD,A00620,8,2016
Allerdale Borough Council,10601,Employee Costs,Training,External Courses & Seminar Fees,15/11/2016,193453,-150.00,CHARTERED INSTITUTE OF HOUSING,A01952,8,2016
Allerdale Borough Council,10601,Employee Costs,Training,External Courses & Seminar Fees,16/11/2016,193454,105.00,PROFESSIONAL CONFERENCES,A02379,8,2016
Allerdale Borough Council,16300,Supplies & Services,Cumbria Tourism,Budget-Miscellaneous,16/11/2016,193455,"4,509.00",CUMBRIA TOURISM,A00477,8,2016
Allerdale Borough Council,12201,Premises,Corporate Property Maintenance,Internal Maintenance,16/11/2016,193456,"1,186.00",G H CHAMBERS & SON,C00030,8,2016
Allerdale Borough Council,15101,Supplies & Services,Homelessness,Equipment Costs,16/11/2016,193457,52.31,STEVES PAINT LTD,A00119,8,2016
Allerdale Borough Council,15603,Supplies & Services,Document Management Pay Group,Franking Machine Costs,30/11/2016,193458,300.00,THE MAILING ROOM (TMR EXECUTIVE AGENCY LTD),A00733,8,2016
Allerdale Borough Council,15511,Supplies & Services,Street Cleansing,Removal of Vehicles,16/11/2016,193459,100.00,MICHAEL DOUGLAS AUTO SALVAGE,A00078,8,2016
Allerdale Borough Council,10401,Employee Costs,Shared IT Services Pay Group,Agency Staff Costs,16/11/2016,193460,279.60,ADECCO RECRUITMENT,A00188,8,2016
Allerdale Borough Council,10401,Employee Costs,Customer Services Pay Group,Agency Staff Costs,16/11/2016,193461,517.26,ADECCO RECRUITMENT,A00188,8,2016
Allerdale Borough Council,15405,Supplies & Services,Electoral Registration,Use of External Printers,16/11/2016,193462,341.54,PRINT IMAGE NETWORK LIMITED,A01127,8,2016
Allerdale Borough Council,52106,Capital Expenditure,New Leisure Facility,Consultants Fees (Capital),23/11/2016,193463,"2,065.60",KNOWLES LIMITED,A02383,8,2016
Allerdale Borough Council,51101,Capital Expenditure,New Leisure Facility,External Contractor Payments (Capital),16/11/2016,193464,"108,949.77",WILLMOTT DIXON CAPITAL WORKS LTD,C00127,8,2016
Allerdale Borough Council,12101,Premises,Corporate Property Maintenance,External Maintenance & Decoration,16/11/2016,193465,285.00,J DUFFY LTD T/A PW CONF BUS SERVICES,A01846,8,2016
Allerdale Borough Council,15500,Supplies & Services,Confidential Waste,Budget-Services,16/11/2016,193466,404.00,J DUFFY LTD T/A PW CONF BUS SERVICES,A01846,8,2016
Allerdale Borough Council,15904,Supplies & Services,Members Services,Training,16/11/2016,193467,400.00,CARLISLE CITY COUNCIL,A00161,8,2016
Allerdale Borough Council,16100,Supplies & Services,Communications and Marketing,Budget-Advertising and Promotions,16/11/2016,193468,360.00,FIRPRESS PRINTERS,A00063,8,2016
Allerdale Borough Council,16100,Supplies & Services,Communications and Marketing,Budget-Advertising and Promotions,16/11/2016,193469,150.00,FIRPRESS PRINTERS,A00063,8,2016
Allerdale Borough Council,16100,Supplies & Services,Communications and Marketing,Budget-Advertising and Promotions,16/11/2016,193470,635.00,EASBY ORWELL LTD,A00887,8,2016
Allerdale Borough Council,16100,Supplies & Services,Communications and Marketing,Budget-Advertising and Promotions,16/11/2016,193471,875.84,CUMBRIAN NEWSPAPERS LIMITED,A00869,8,2016
Allerdale Borough Council,15904,Supplies & Services,Members Services,Training,16/11/2016,193472,600.00,CARLISLE CITY COUNCIL,A00161,8,2016
Allerdale Borough Council,15506,Supplies & Services,Communications,Professional Services,16/11/2016,193473,900.00,ELSWORTH COMMUNICATIONS,A01869,8,2016
Allerdale Borough Council,16100,Supplies & Services,Communications and Marketing,Budget-Advertising and Promotions,23/11/2016,193474,684.00,COMMERCIAL PROPERTY MONTHLY,A01876,8,2016
Allerdale Borough Council,15100,Supplies & Services,Communications and Marketing,"Budget-Equipment, Furniture & Materials",23/11/2016,193475,360.90,4IMPRINT DIRECT LIMITED,A02370,8,2016
Allerdale Borough Council,15505,Supplies & Services,Legal Services,Licences,16/11/2016,193476,220.00,INSTITUTE OF LEGAL EXECUTIVES,A00711,8,2016
Allerdale Borough Council,16100,Supplies & Services,Communications and Marketing,Budget-Advertising and Promotions,23/11/2016,193477,647.00,FIRPRESS PRINTERS,A00063,8,2016
Allerdale Borough Council,16100,Supplies & Services,Communications and Marketing,Budget-Advertising and Promotions,23/11/2016,193478,209.00,FIRPRESS PRINTERS,A00063,8,2016
Allerdale Borough Council,15506,Supplies & Services,Solway Wetlands Project,Professional Services,16/11/2016,193479,250.00,BURNETTS SOLICITORS,A00129,8,2016
Allerdale Borough Council,15101,Supplies & Services,Corporate Property Maintenance,Equipment Costs,16/11/2016,193480,18.03,ALLERDALE BOROUGH COUNCIL,X00034,8,2016
Allerdale Borough Council,54105,Capital Expenditure,Disabled Facilities Grants,Grants  Private Individuals (Capital),16/11/2016,193481,"13,377.56",BLUE FLAME SERVICES LTD,X00213,8,2016
Allerdale Borough Council,15101,Supplies & Services,Homelessness,Equipment Costs,16/11/2016,193482,41.60,ALLERDALE BOROUGH COUNCIL,X00034,8,2016
Allerdale Borough Council,16350,Supplies & Services,Homelessness,Miscellaneous Expenses,16/11/2016,193483,400.00,Redacted information - included personal information ,M00778,8,2016
Allerdale Borough Council,33112,Income,Planning and Development,Planning Fees Income,16/11/2016,193484,144.00,Redacted information - included personal information ,M01011,8,2016
Allerdale Borough Council,33112,Income,Planning and Development,Planning Fees Income,16/11/2016,193485,"1,155.00",Redacted information - included personal information ,M01012,8,2016
Allerdale Borough Council,15604,Supplies & Services,Document Management Pay Group,Franking Machine refills,16/11/2016,193486,"10,000.00",FP TELESET,A00428,8,2016
Allerdale Borough Council,26000,Earmarked Reserves,Corporate Priorities,Budget-Expd funded from Reserve,16/11/2016,193487,"3,000.00",BOTHEL VILLAGE HALL,M00062,8,2016
Allerdale Borough Council,26000,Earmarked Reserves,Corporate Priorities,Budget-Expd funded from Reserve,16/11/2016,193488,"1,000.00",EAGLESFIELD VILLAGE HALL,M00554,8,2016
Allerdale Borough Council,26000,Earmarked Reserves,Corporate Priorities,Budget-Expd funded from Reserve,16/11/2016,193489,"9,500.00",ABOVE DERWENT PC,X00042,8,2016
Allerdale Borough Council,26000,Earmarked Reserves,Corporate Priorities,Budget-Expd funded from Reserve,16/11/2016,193490,"1,200.00",GILCRUX P.C.,X00071,8,2016
Allerdale Borough Council,16102,Supplies & Services,Sellafield Social Impact Investment Fund,Regeneration Initiatives,16/11/2016,193491,"49,932.00",BRAYTON PARK FARM SHOP,M01013,8,2016
Allerdale Borough Council,26000,Earmarked Reserves,Corporate Priorities,Budget-Expd funded from Reserve,16/11/2016,193492,"3,835.00",FRIENDS OF ALLONBY GREEN,M01014,8,2016
Allerdale Borough Council,16350,Supplies & Services,Parks and Grounds Maintenance,Miscellaneous Expenses,16/11/2016,193493,285.00,BEVAN BRITTAN LLP,A02181,8,2016
Allerdale Borough Council,15810,Supplies & Services,IT Services,Software Licences,16/11/2016,193494,720.00,VAADHOO LIMITED,A02268,8,2016
Allerdale Borough Council,15506,Supplies & Services,KMAG Enhancement Activity,Professional Services,16/11/2016,193495,280.00,Redacted information - included personal information ,A02056,8,2016
Allerdale Borough Council,16350,Supplies & Services,Parks and Grounds Maintenance,Miscellaneous Expenses,16/11/2016,193496,345.00,BEVAN BRITTAN LLP,A02181,8,2016
Allerdale Borough Council,16350,Supplies & Services,Parks and Grounds Maintenance,Miscellaneous Expenses,16/11/2016,193497,435.00,BEVAN BRITTAN LLP,A02181,8,2016
Allerdale Borough Council,15506,Supplies & Services,Legal Services,Professional Services,23/11/2016,193498,"2,000.00",EVERSHEDS LLP,A01516,8,2016
Allerdale Borough Council,15501,Supplies & Services,Planning Policy,Consultants Fees,23/11/2016,193499,"1,117.75",WYG ENVIRONMENT PLANNING TRANSPORT LTD,A01785,8,2016
Allerdale Borough Council,15505,Supplies & Services,Planning and Development,Licences,23/11/2016,193500,34.22,CENTREMAPS,A00512,8,2016
Allerdale Borough Council,52107,Capital Expenditure,Evolution Centre Food Bank Works,Removal Costs (Capital),23/11/2016,193501,794.00,Redacted information - included personal information ,C00008,8,2016
Allerdale Borough Council,12101,Premises,Corporate Property Maintenance,External Maintenance & Decoration,23/11/2016,193502,150.00,Redacted information - included personal information ,A00442,8,2016
Allerdale Borough Council,12101,Premises,Corporate Property Maintenance,External Maintenance & Decoration,23/11/2016,193503,150.00,Redacted information - included personal information ,A00442,8,2016
Allerdale Borough Council,12402,Premises,Corporate Property Maintenance,Electricity,30/11/2016,193504,90.00,AMEY METERING LIMITED,A01503,8,2016
Allerdale Borough Council,12301,Premises,Corporate Property Maintenance,Security,07/12/2016,193505,45.00,ADT FIRE & SECURITY PLC,C00035,8,2016
Allerdale Borough Council,12201,Premises,Homelessness,Internal Maintenance,23/11/2016,193506,28.00,TRAVIS PERKINS,A00742,8,2016
Allerdale Borough Council,16150,Supplies & Services,Solway Coast AONB Core Funding,General Promotions,23/11/2016,193507,20.00,MICHAELA CORRIE GRAPHIC DESIGN,A00513,8,2016
Allerdale Borough Council,14100,Transport,Mayoral Services,Budget-Council Vehicles (Non-capital),23/11/2016,193508,50.00,JOHN HOBAN TRAVEL LTD,A00016,8,2016
Allerdale Borough Council,15104,Supplies & Services,Bereavement Services,Supplies for Resale,23/11/2016,193509,57.00,GRANART,A00644,8,2016
Allerdale Borough Council,15104,Supplies & Services,Bereavement Services,Supplies for Resale,23/11/2016,193510,57.00,GRANART,A00644,8,2016
Allerdale Borough Council,15101,Supplies & Services,Homelessness,Equipment Costs,23/11/2016,193511,77.95,THE LAUNDRY STUDIO,A00225,8,2016
Allerdale Borough Council,16101,Supplies & Services,Planning and Development,Statutory Notices,23/11/2016,193512,307.53,CUMBRIAN NEWSPAPERS LIMITED,A00869,8,2016
Allerdale Borough Council,16101,Supplies & Services,Planning and Development,Statutory Notices,23/11/2016,193513,210.36,CUMBRIAN NEWSPAPERS LIMITED,A00869,8,2016
Allerdale Borough Council,15101,Supplies & Services,Public Convenience Cleaning,Equipment Costs,23/11/2016,193514,62.64,INSTOCK (CHANDLERS),A00050,8,2016
Allerdale Borough Council,15701,Supplies & Services,IT Costs (Allerdale Only),Installation Costs,14/12/2016,193515,628.00,MILLGATE COMPUTER SYSTEMS,A02314,8,2016
Allerdale Borough Council,12307,Premises,Corporate Property Maintenance,Fixtures and Fittings,07/12/2016,193516,700.00,SHERIDAN LIFTS LIMITED,C00120,8,2016
Allerdale Borough Council,12301,Premises,Corporate Property Maintenance,Security,23/11/2016,193517,33.60,PROTEC SYSTEMS,C00026,8,2016
Allerdale Borough Council,14150,Transport,Gates Travel,General-Council Vehicles (Non-Capital),23/11/2016,193518,"1,841.10",GATES TRAVEL,A01525,8,2016
Allerdale Borough Council,10601,Employee Costs,Solway Coast AONB Core Funding,External Courses & Seminar Fees,23/11/2016,193519,35.00,NAAONB,A00735,8,2016
Allerdale Borough Council,15808,Supplies & Services,IT Services,Computer Consumables,14/12/2016,193520,52.06,MISCO,A00125,8,2016
Allerdale Borough Council,16150,Supplies & Services,Solway Wetlands Project,General Promotions,14/12/2016,193521,512.62,NORTH OF ENGLAND CIVIC TRUST,A02178,8,2016
Allerdale Borough Council,12201,Premises,Homelessness,Internal Maintenance,23/11/2016,193522,165.00,CUMBRIA SUPERGLAZE,A00982,8,2016
Allerdale Borough Council,15503,Supplies & Services,Revenue,Court and Tribunal Costs,23/11/2016,193523,654.00,HMCTS - WEST CUMBRIA COURT HOUSE,A00275,8,2016
Allerdale Borough Council,12201,Premises,Homelessness,Internal Maintenance,23/11/2016,193524,475.00,CUMBRIA SUPERGLAZE,A00982,8,2016
Allerdale Borough Council,12301,Premises,Car Parks Inspection & Maintenance,Security,07/12/2016,193525,"2,429.55",G4S SECURE SOLUTIONS,A01597,8,2016
Allerdale Borough Council,15401,Supplies & Services,Document Management Pay Group,General Stationery,23/11/2016,193526,"1,000.00",WEST CUMBRIA COMMUNITY MONEY ADVICE,A02285,8,2016
Allerdale Borough Council,15803,Supplies & Services,IT Costs (Allerdale Only),Hardware Purchase,10/01/2017,193527,"2,274.99",BARCLAYCARD COMMERCIAL,X00207,8,2016
Allerdale Borough Council,15502,Supplies & Services,Legal Services,Land Registry Fees,15/11/2016,193528,27.00,HM LAND REGISTRY ,A00505,8,2016
Allerdale Borough Council,54104,Capital Expenditure,Housing Improvement Projects,Gen Grants Private Individuals (Captial),23/11/2016,193529,650.00,CONISTON CONSULTANTS LTD,X00210,8,2016
Allerdale Borough Council,16150,Supplies & Services,Maryport Shop Front Improvements,General Promotions,23/11/2016,193530,900.00,Redacted information - included personal information ,M00985,8,2016
Allerdale Borough Council,16350,Supplies & Services,Leaders Portfolio,Miscellaneous Expenses,23/11/2016,193531,"2,000.00",LOWESWATER P.C.,X00085,8,2016
Allerdale Borough Council,54105,Capital Expenditure,Disabled Facilities Grants,Grants  Private Individuals (Capital),23/11/2016,193532,"1,480.95",PARTNERSHIP IN PROPERTY MANAGEMENT LTD,X00120,8,2016
Allerdale Borough Council,54105,Capital Expenditure,Disabled Facilities Grants,Grants  Private Individuals (Capital),23/11/2016,193533,"3,535.00",K BAILIFF & SON LIMITED,X00116,8,2016
Allerdale Borough Council,54105,Capital Expenditure,Disabled Facilities Grants,Grants  Private Individuals (Capital),23/11/2016,193534,"2,350.00",TOP NOTCH CONTRACTORS LTD,X00165,8,2016
Allerdale Borough Council,54105,Capital Expenditure,Disabled Facilities Grants,Grants  Private Individuals (Capital),23/11/2016,193535,"3,165.00",BLUE FLAME SERVICES LTD,X00213,8,2016
Allerdale Borough Council,15506,Supplies & Services,Legal Services,Professional Services,23/11/2016,193536,"1,052.00",BEVAN BRITTAN LLP,A02181,8,2016
Allerdale Borough Council,54105,Capital Expenditure,Central Heating Fund,Grants  Private Individuals (Capital),23/11/2016,193537,"17,402.06",NPOWER NORTHERN LIMITED,A02337,8,2016
Allerdale Borough Council,16102,Supplies & Services,Town Centre Management,Regeneration Initiatives,23/11/2016,193538,200.00,CUMBRIAN NEWSPAPERS LIMITED,A00869,8,2016
Allerdale Borough Council,15501,Supplies & Services,Estates,Consultants Fees,23/11/2016,193539,"2,300.00",JAMES ANDREW RECRUITMENT SOLUTIONS LTD,A02339,8,2016
Allerdale Borough Council,10401,Employee Costs,Environmental Services Pay Group,Agency Staff Costs,14/12/2016,193540,"4,240.00",PRACTICUS LTD,A02237,8,2016
Allerdale Borough Council,15101,Supplies & Services,Domestic Waste,Equipment Costs,23/11/2016,193541,"6,486.00",PLASTIC OMNIUM URBAN SYSTEMS LTD,A00159,8,2016
Allerdale Borough Council,14105,Transport,Street Cleansing,"Fuel, Lubricants & Consumables",23/11/2016,193542,108.99,MICHELDEVER TYRE SERVICES T/A P&R AUTOCENTRE,A02368,8,2016
Allerdale Borough Council,14105,Transport,Street Cleansing,"Fuel, Lubricants & Consumables",23/11/2016,193543,77.66,MICHELDEVER TYRE SERVICES T/A P&R AUTOCENTRE,A02368,8,2016
Allerdale Borough Council,20101,Third Party Payments,Recycling,Cleansing Contract,23/11/2016,193544,211.69,CUMBRIA WASTE MANAGEMENT LTD,A01304,8,2016
Allerdale Borough Council,10401,Employee Costs,Shared IT Services Pay Group,Agency Staff Costs,23/11/2016,193545,468.33,ADECCO RECRUITMENT,A00188,8,2016
Allerdale Borough Council,15803,Supplies & Services,IT Costs (Allerdale Only),Hardware Purchase,07/12/2016,193546,653.28,MISCO,A00125,8,2016
Allerdale Borough Council,15402,Supplies & Services,Multi-functional Printers,Photocopier Charges,07/12/2016,193547,"5,065.57",KONICA MINOLTA BUSINESS SOLUTIONS UK LTD,A01556,8,2016
Allerdale Borough Council,15101,Supplies & Services,Corporate Property Maintenance,Equipment Costs,30/11/2016,193548,50.00,Redacted information - included personal information ,A00561,8,2016
Allerdale Borough Council,26000,Earmarked Reserves,Shared Revs & Bens Projects,Budget-Expd funded from Reserve,23/11/2016,193549,543.92,MORGAN HUNT PUBLIC SECTOR,A00725,8,2016
Allerdale Borough Council,10401,Employee Costs,Customer Services Pay Group,Agency Staff Costs,23/11/2016,193550,517.26,ADECCO RECRUITMENT,A00188,8,2016
Allerdale Borough Council,14104,Transport,Public Convenience Cleaning,Repairs & Maintenance,23/11/2016,193551,198.17,FCC ENVIRONMENT SERVICES (FOCSA),A00085,8,2016
Allerdale Borough Council,14104,Transport,Public Convenience Cleaning,Repairs & Maintenance,23/11/2016,193552,123.78,FCC ENVIRONMENT SERVICES (FOCSA),A00085,8,2016
Allerdale Borough Council,15405,Supplies & Services,Members Services,Use of External Printers,23/11/2016,193553,12.00,FIRPRESS PRINTERS,A00063,8,2016
Allerdale Borough Council,15808,Supplies & Services,IT Services,Computer Consumables,14/12/2016,193554,55.77,MISCO,A00125,8,2016
Allerdale Borough Council,15803,Supplies & Services,IT Costs (Allerdale Only),Hardware Purchase,14/12/2016,193555,396.40,UPGRADE OPTIONS LTD,A02316,8,2016
Allerdale Borough Council,16303,Supplies & Services,Economic Regeneration,Contribution to Other Organisations,30/11/2016,193556,"1,000.00",CENTRE FOR LEADERSHIP PERFORMANCE,A01504,8,2016
Allerdale Borough Council,15101,Supplies & Services,Public Convenience Cleaning,Equipment Costs,23/11/2016,193557,65.70,WF HYGIENE & CLEANING SUPPLIES,A01794,8,2016
Allerdale Borough Council,20300,Third Party Payments,Recycling,Budget-Contract Services,23/11/2016,193558,"368,368.17",FCC ENVIRONMENT SERVICES (FOCSA),A00085,8,2016
Allerdale Borough Council,15103,Supplies & Services,Sports Development,Purchase of Materials,23/11/2016,193559,350.00,HONISTER SLATE MINE,A01700,8,2016
Allerdale Borough Council,16150,Supplies & Services,KMAG Enhancement Activity,General Promotions,23/11/2016,193560,43.60,MCKANES PRINTERS,A01507,8,2016
Allerdale Borough Council,15501,Supplies & Services,KMAG Enhancement Activity,Consultants Fees,23/11/2016,193561,"1,200.00",KAVENEY HR SOLUTIONS LIMITED,A02027,8,2016
Allerdale Borough Council,15507,Supplies & Services,Land Charges Service,Searches,23/11/2016,193562,"1,672.00",CUMBRIA CC ,A00066,8,2016
Allerdale Borough Council,15507,Supplies & Services,Land Charges Service,Searches,23/11/2016,193563,"1,947.00",CUMBRIA CC ,A00066,8,2016
Allerdale Borough Council,10401,Employee Costs,Housing & Health Pay Group,Agency Staff Costs,14/12/2016,193564,242.00,HAYS SPECIALIST RECRUITMENT LTD,A00280,8,2016
Allerdale Borough Council,15507,Supplies & Services,Land Charges Service,Searches,23/11/2016,193565,"2,179.00",CUMBRIA CC,A00066,8,2016
Allerdale Borough Council,15506,Supplies & Services,KMAG Enhancement Activity,Professional Services,14/12/2016,193566,497.00,FUZZY DUCK CREATIVE LTD,A02384,8,2016
Allerdale Borough Council,15401,Supplies & Services,Document Management Pay Group,General Stationery,30/11/2016,193567,54.40,K&R BADGES LIMITED,A01328,8,2016
Allerdale Borough Council,15703,Supplies & Services,Shared ICT Costs,Call Charges,23/11/2016,193568,535.54,BRITISH TELECOMMUNICATIONS,X00004,8,2016
Allerdale Borough Council,70104,VAT,Input VAT,VAT - 20%,23/11/2016,193569,0.00,JACOBS (BAILIFFS),A00495,8,2016
Allerdale Borough Council,12402,Premises,Homelessness,Electricity,23/11/2016,193570,27.22,OPUS ENERGY,X00226,8,2016
Allerdale Borough Council,12402,Premises,Homelessness,Electricity,23/11/2016,193571,30.80,OPUS ENERGY,X00226,8,2016
Allerdale Borough Council,12402,Premises,Homelessness,Electricity,23/11/2016,193572,41.60,OPUS ENERGY,X00226,8,2016
Allerdale Borough Council,12402,Premises,Homelessness,Electricity,23/11/2016,193573,36.08,OPUS ENERGY,X00226,8,2016
Allerdale Borough Council,12402,Premises,Footways,Electricity,23/11/2016,193574,"5,062.55",N POWER ,X00015,8,2016
Allerdale Borough Council,12402,Premises,Car Parks Inspection & Maintenance,Electricity,23/11/2016,193575,85.34,N POWER,X00015,8,2016
Allerdale Borough Council,70104,VAT,Input VAT,VAT - 20%,23/11/2016,193576,0.00,ROSSENDALES LTD,A00964,8,2016
Allerdale Borough Council,70104,VAT,Input VAT,VAT - 20%,23/11/2016,193577,0.00,ROSSENDALES LTD,A00964,8,2016
Allerdale Borough Council,12408,Premises,Corporate Property Maintenance,Water & Sewage,23/11/2016,193578,323.94,UNITED UTILITIES,X00011,8,2016
Allerdale Borough Council,12403,Premises,Corporate Property Maintenance,Gas,23/11/2016,193579,27.75,BRITISH GAS ,X00039,8,2016
Allerdale Borough Council,70104,VAT,Input VAT,VAT - 20%,30/11/2016,193580,0.00,ROSSENDALES LTD,A00964,8,2016
Allerdale Borough Council,70104,VAT,Input VAT,VAT - 20%,30/11/2016,193581,0.00,ROSSENDALES LTD,A00964,8,2016
Allerdale Borough Council,12408,Premises,Public Convenience Cleaning,Water & Sewage,23/11/2016,193582,64.39,UNITED UTILITIES,X00011,8,2016
Allerdale Borough Council,12402,Premises,Corporate Property Maintenance,Electricity,23/11/2016,193583,9.57,N POWER ,X00015,8,2016
Allerdale Borough Council,12402,Premises,Corporate Property Maintenance,Electricity,23/11/2016,193584,9.25,N POWER ,X00015,8,2016
Allerdale Borough Council,12402,Premises,Corporate Property Maintenance,Electricity,23/11/2016,193585,395.81,N POWER ,X00015,8,2016
Allerdale Borough Council,12402,Premises,Corporate Property Maintenance,Electricity,23/11/2016,193586,280.52,N POWER ,X00015,8,2016
Allerdale Borough Council,12402,Premises,Public Convenience Cleaning,Electricity,23/11/2016,193587,9.03,N POWER ,X00015,8,2016
Allerdale Borough Council,12402,Premises,Public Convenience Cleaning,Electricity,23/11/2016,193588,9.03,N POWER ,X00015,8,2016
Allerdale Borough Council,12402,Premises,Public Convenience Cleaning,Electricity,23/11/2016,193589,88.45,N POWER ,X00015,8,2016
Allerdale Borough Council,12402,Premises,Public Convenience Cleaning,Electricity,23/11/2016,193590,76.18,N POWER ,X00015,8,2016
Allerdale Borough Council,12402,Premises,Public Convenience Cleaning,Electricity,23/11/2016,193591,9.03,N POWER ,X00015,8,2016
Allerdale Borough Council,12402,Premises,Public Convenience Cleaning,Electricity,23/11/2016,193592,9.03,N POWER ,X00015,8,2016
Allerdale Borough Council,12402,Premises,Corporate Property Maintenance,Electricity,23/11/2016,193593,297.17,N POWER ,X00015,8,2016
Allerdale Borough Council,12402,Premises,Corporate Property Maintenance,Electricity,23/11/2016,193594,114.42,N POWER ,X00015,8,2016
Allerdale Borough Council,12402,Premises,Public Convenience Cleaning,Electricity,23/11/2016,193595,26.55,N POWER ,X00015,8,2016
Allerdale Borough Council,70104,VAT,Input VAT,VAT - 20%,30/11/2016,193596,0.00,ROSSENDALES LTD,A00964,8,2016
Allerdale Borough Council,54104,Capital Expenditure,Housing Improvement Projects,Gen Grants Private Individuals (Captial),23/11/2016,193597,200.00,Redacted information - included personal information ,M01015,8,2016
Allerdale Borough Council,33117,Income,Off-street - Owned,Car Parks - Income from Machines,23/11/2016,193598,5.50,Redacted information - included personal information ,M01016,8,2016
Allerdale Borough Council,16150,Supplies & Services,Maryport Shop Front Improvements,General Promotions,23/11/2016,193599,612.00,Redacted information - included personal information ,M01009,8,2016
Allerdale Borough Council,16150,Supplies & Services,Maryport Shop Front Improvements,General Promotions,23/11/2016,193600,585.00,Redacted information - included personal information ,M01017,8,2016
Allerdale Borough Council,15506,Supplies & Services,Legal Services,Professional Services,23/11/2016,193601,"5,135.00",SCOOP AM LLP,A02086,8,2016
Allerdale Borough Council,16102,Supplies & Services,Sellafield Social Impact Investment Fund,Regeneration Initiatives,23/11/2016,193602,300.00,POD (NORTH WEST) LIMITED,A01977,8,2016
Allerdale Borough Council,12103,Premises,Coastal Protection and Inland Flooding,Grounds Maintenance,30/11/2016,193603,"3,350.90",JOHN ELLIOTT LIMITED,C00023,8,2016
Allerdale Borough Council,15812,Supplies & Services,Licensing Service,Software Development,23/11/2016,193604,"1,100.00",IDOX SOFTWARE LTD,A00291,8,2016
Allerdale Borough Council,15506,Supplies & Services,Legal Services,Professional Services,23/11/2016,193605,"1,789.00",BEVAN BRITTAN LLP,A02181,8,2016
Allerdale Borough Council,12401,Premises,Corporate Property Maintenance,Energy Management Charges,14/12/2016,193606,400.00,COMMERCIAL SURVEY REPORTS LTD T/A CSR SUSTAIN,A02365,8,2016
Allerdale Borough Council,15101,Supplies & Services,Corporate Property Maintenance,Equipment Costs,30/11/2016,193607,34.00,Redacted information - included personal information ,A00561,8,2016
Allerdale Borough Council,10110,Employee Costs,Housing & Health Pay Group,Salary Sacrifice,23/11/2016,193608,"2,730.41",TUSKERDIRECT LTD,A02186,8,2016
Allerdale Borough Council,15601,Supplies & Services,Benefits,Postage,23/11/2016,193609,"1,499.24",ROYAL MAIL LETTERS,X00021,8,2016
Allerdale Borough Council,15601,Supplies & Services,Benefits,Postage,23/11/2016,193610,"1,101.49",ROYAL MAIL LETTERS,X00021,8,2016
Allerdale Borough Council,12402,Premises,Public Convenience Cleaning,Electricity,23/11/2016,193611,101.50,N POWER,X00015,8,2016
Allerdale Borough Council,12402,Premises,Corporate Property Maintenance,Electricity,23/11/2016,193612,7.11,N POWER,X00015,8,2016
Allerdale Borough Council,12402,Premises,Car Parks Inspection & Maintenance,Electricity,23/11/2016,193613,20.41,N POWER,X00015,8,2016
Allerdale Borough Council,12408,Premises,Corporate Property Maintenance,Water & Sewage,23/11/2016,193614,21.22,UNITED UTILITIES,X00011,8,2016
Allerdale Borough Council,12408,Premises,Corporate Property Maintenance,Water & Sewage,23/11/2016,193615,14.34,UNITED UTILITIES,X00011,8,2016
Allerdale Borough Council,12408,Premises,Public Convenience Cleaning,Water & Sewage,23/11/2016,193616,206.74,UNITED UTILITIES,X00011,8,2016
Allerdale Borough Council,35106,Income,Homelessness,Dwellings Income,23/11/2016,193617,189.60,ALLERDALE ,A00342,8,2016
Allerdale Borough Council,12408,Premises,Corporate Property Maintenance,Water & Sewage,23/11/2016,193618,47.10,UNITED UTILITIES,X00011,8,2016
Allerdale Borough Council,12402,Premises,Public Convenience Cleaning,Electricity,23/11/2016,193619,72.70,UNITED UTILITIES,X00011,8,2016
Allerdale Borough Council,12402,Premises,Corporate Property Maintenance,Electricity,23/11/2016,193620,6.05,UNITED UTILITIES,X00011,8,2016
Allerdale Borough Council,12408,Premises,Corporate Property Maintenance,Water & Sewage,23/11/2016,193621,10.44,UNITED UTILITIES,X00011,8,2016
Allerdale Borough Council,12402,Premises,Corporate Property Maintenance,Electricity,23/11/2016,193622,44.22,BES COMMERCIAL ELECTRICITY LTD,X00243,8,2016
Allerdale Borough Council,12408,Premises,Corporate Property Maintenance,Water & Sewage,23/11/2016,193623,750.84,UNITED UTILITIES ,X00011,8,2016
Allerdale Borough Council,14104,Transport,Public Convenience Cleaning,Repairs & Maintenance,,193624,290.82,BARCLAYCARD COMMERCIAL,X00207,8,2016
Allerdale Borough Council,15506,Supplies & Services,Insurances,Professional Services,30/11/2016,193625,"7,500.00",BLUEFIN INSURANCE SERVICES LTD,A01716,8,2016
Allerdale Borough Council,14103,Transport,Insurances,Insurance Council Vehicles,30/11/2016,193626,"7,325.52",BLUEFIN INSURANCE SERVICES LTD,A01716,8,2016
Allerdale Borough Council,81602,Balance Sheet,General Fund,Prov-Insurance Excess (Balance Sheet),30/11/2016,193627,180.00,ZURICH MUNICIPAL,A00429,8,2016
Allerdale Borough Council,20101,Third Party Payments,Public Convenience Cleaning,Cleansing Contract,30/11/2016,193628,200.00,J STRONG & SON,A00209,8,2016
Allerdale Borough Council,15904,Supplies & Services,Document Management Pay Group,Training,30/11/2016,193629,190.00,TWOFOLD LTD,A00317,8,2016
Allerdale Borough Council,16350,Supplies & Services,Leaders Portfolio,Miscellaneous Expenses,30/11/2016,193630,160.00,JIM DAVIS PHOTOGRAPHY,A00627,8,2016
Allerdale Borough Council,12305,Premises,Corporate Property Maintenance,Inspections and Services,30/11/2016,193631,"3,942.04",O'CONNELL & BEAN (MECH&ELEC) LTD,C00078,8,2016
Allerdale Borough Council,15506,Supplies & Services,Legal Services,Professional Services,30/11/2016,193632,35.20,BURNETTS SOLICITORS,A00129,8,2016
Allerdale Borough Council,15506,Supplies & Services,Legal Services,Professional Services,30/11/2016,193633,"1,425.60",BURNETTS SOLICITORS,A00129,8,2016
Allerdale Borough Council,15803,Supplies & Services,IT Costs (Allerdale Only),Hardware Purchase,21/12/2016,193634,808.00,TOTAL COMPUTER NETWORKS LTD,A02378,8,2016
Allerdale Borough Council,16101,Supplies & Services,Planning and Development,Statutory Notices,30/11/2016,193635,512.55,CUMBRIAN NEWSPAPERS LIMITED,A00869,8,2016
Allerdale Borough Council,52107,Capital Expenditure,Evolution Centre Food Bank Works,Removal Costs (Capital),30/11/2016,193636,"3,935.00",J & J ELECTRICAL (CUMBRIA) LTD,C00038,8,2016
Allerdale Borough Council,12301,Premises,Corporate Property Maintenance,Security,30/11/2016,193637,65.00,PROTEC SYSTEMS,C00026,8,2016
Allerdale Borough Council,12309,Premises,Corporate Property Maintenance,Fire and Safety,30/11/2016,193638,35.00,PROTEC SYSTEMS,C00026,8,2016
Allerdale Borough Council,52107,Capital Expenditure,Evolution Centre Food Bank Works,Removal Costs (Capital),30/11/2016,193639,850.60,PROTEC SYSTEMS,C00026,8,2016
Allerdale Borough Council,26000,Earmarked Reserves,Shared Revs & Bens Projects,Budget-Expd funded from Reserve,30/11/2016,193640,970.58,MORGAN HUNT PUBLIC SECTOR,A00725,8,2016
Allerdale Borough Council,52107,Capital Expenditure,Evolution Centre Food Bank Works,Removal Costs (Capital),30/11/2016,193641,"1,448.00",Redacted information - included personal information ,C00008,8,2016
Allerdale Borough Council,16350,Supplies & Services,Homelessness,Miscellaneous Expenses,,193642,132.00,BARCLAYCARD COMMERCIAL,X00207,8,2016
Allerdale Borough Council,54104,Capital Expenditure,Housing Improvement Projects,Gen Grants Private Individuals (Captial),30/11/2016,193643,200.00,Redacted information - included personal information ,M01018,8,2016
Allerdale Borough Council,15505,Supplies & Services,Legal Services,Licences,,193644,322.00,BARCLAYCARD COMMERCIAL ,X00207,8,2016
Allerdale Borough Council,16150,Supplies & Services,Sports Development,General Promotions,30/11/2016,193645,"2,920.00",GREENWICH LEISURE LTD (PREV CARLISLE LEISURE),A00136,8,2016
Allerdale Borough Council,16350,Supplies & Services,Museums,Miscellaneous Expenses,30/11/2016,193646,"1,500.00",ARTLINK TRANSPORT & STORAGE LTD,A02362,8,2016
Allerdale Borough Council,21150,Transfer Payments,Supporting Leisure Activity across Aller,General Grants,30/11/2016,193647,"5,000.00",WIGTON BATHS TRUST,M00604,8,2016
Allerdale Borough Council,16302,Supplies & Services,Sports Development,Room Hire,30/11/2016,193648,90.00,ENTRA,A02331,8,2016
Allerdale Borough Council,15506,Supplies & Services,Sports Development,Professional Services,30/11/2016,193649,84.00,SOLWAY COMMUNITY TECHNOLOGY COLLEGE (SPORTS HALL),M00118,8,2016
Allerdale Borough Council,10401,Employee Costs,Environmental Services Pay Group,Agency Staff Costs,21/12/2016,193650,"2,120.00",PRACTICUS LTD,A02237,8,2016
Allerdale Borough Council,15501,Supplies & Services,Planning and Development,Consultants Fees,21/12/2016,193651,"1,000.00",KINGS CHAMBERS,A00348,8,2016
Allerdale Borough Council,15506,Supplies & Services,Environmental Protection,Professional Services,30/11/2016,193652,38.00,Redacted information - included personal information ,C00008,8,2016
Allerdale Borough Council,15808,Supplies & Services,IT Services,Computer Consumables,21/12/2016,193653,25.58,MISCO,A00125,8,2016
Allerdale Borough Council,16301,Supplies & Services,KMAG Enhancement Activity,Reimbursement,30/11/2016,193654,"1,922.62",KESWICK MUSEUM & ART GALLERY,A00337,8,2016
Allerdale Borough Council,15501,Supplies & Services,Building Control - Chargeable,Consultants Fees,07/12/2016,193655,46.00,PK ELECTRICAL (CARLISLE) LTD,A00778,8,2016
Allerdale Borough Council,15808,Supplies & Services,IT Services,Computer Consumables,21/12/2016,193656,31.50,TOTAL COMPUTER NETWORKS LTD,A02378,8,2016
Allerdale Borough Council,15501,Supplies & Services,Planning and Development,Consultants Fees,07/12/2016,193657,427.70,TREESCAPES CONSULTANCY LTD,A02385,8,2016
Allerdale Borough Council,12301,Premises,Corporate Property Maintenance,Security,30/11/2016,193658,"3,466.66",G4S ASSESSMENT SERVICES,A01089,8,2016
Allerdale Borough Council,16301,Supplies & Services,KMAG Enhancement Activity,Reimbursement,30/11/2016,193659,104.79,KESWICK MUSEUM & ART GALLERY,A00337,8,2016
Allerdale Borough Council,15506,Supplies & Services,Sports Development,Professional Services,30/11/2016,193660,140.00,THE SELF COACH,A02328,8,2016
Allerdale Borough Council,16150,Supplies & Services,KMAG Enhancement Activity,General Promotions,30/11/2016,193661,19.74,MCKANES PRINTERS,A01507,8,2016
Allerdale Borough Council,16302,Supplies & Services,Sports Development,Room Hire,30/11/2016,193662,60.00,ALL SOULS PAROCHIAL CHURC COUNCIL,A02336,8,2016
Allerdale Borough Council,15506,Supplies & Services,Arts Development,Professional Services,30/11/2016,193663,500.00,Redacted information - included personal information ,A02387,8,2016
Allerdale Borough Council,12201,Premises,Public Convenience Cleaning,Internal Maintenance,07/12/2016,193664,550.00,NORTH WEST LAKES PROPERTY CLEANING,C00159,8,2016
Allerdale Borough Council,20150,Third Party Payments,Managed Car Parks,General Partnership Service Fees,14/12/2016,193665,"19,120.55",KESWICK CONVENTION TRUST,A02390,8,2016
Allerdale Borough Council,33117,Income,Off-street - Owned,Car Parks - Income from Machines,30/11/2016,193666,32.40,Redacted information - included personal information ,M01019,8,2016
Allerdale Borough Council,15508,Supplies & Services,Localities & Partnerships,Subscriptions,30/11/2016,193667,330.00,KENT COUNTY COUNCIL,A02189,8,2016
Allerdale Borough Council,12201,Premises,Homelessness,Internal Maintenance,30/11/2016,193668,112.00,TRAVIS PERKINS,A00742,8,2016
Allerdale Borough Council,15500,Supplies & Services,Environmental Initiatives,Budget-Services,21/12/2016,193669,720.00,ISS WATERERS LANDSCAPE,C00044,8,2016
Allerdale Borough Council,15402,Supplies & Services,Customer Services Pay Group,Photocopier Charges,14/12/2016,193670,9.56,RICOH UK LTD,A00037,8,2016
Allerdale Borough Council,15402,Supplies & Services,Customer Services Pay Group,Photocopier Charges,14/12/2016,193671,15.56,RICOH UK LTD,A00037,8,2016
Allerdale Borough Council,15513,Supplies & Services,Environmental Initiatives,Subcontractors - General,21/12/2016,193672,"4,934.00",AQUATIC SOLUTIONS UK,A01536,8,2016
Allerdale Borough Council,10401,Employee Costs,Customer Services Pay Group,Agency Staff Costs,07/12/2016,193673,412.41,ADECCO RECRUITMENT,A00188,8,2016
Allerdale Borough Council,12408,Premises,Corporate Property Maintenance,Water & Sewage,30/11/2016,193674,"1,701.93",UNITED UTILITIES ,X00011,8,2016
Allerdale Borough Council,12402,Premises,Corporate Property Maintenance,Electricity,30/11/2016,193675,"-1,434.14",N POWER ,X00015,8,2016
Allerdale Borough Council,12402,Premises,Corporate Property Maintenance,Electricity,30/11/2016,193676,"2,036.27",N POWER ,X00015,8,2016
Allerdale Borough Council,12402,Premises,Corporate Property Maintenance,Electricity,30/11/2016,193677,"1,361.90",N POWER ,X00015,8,2016
Allerdale Borough Council,70104,VAT,Input VAT,VAT - 20%,14/12/2016,193678,0.00,JACOBS (BAILIFFS),A00495,8,2016
Allerdale Borough Council,70104,VAT,Input VAT,VAT - 20%,07/12/2016,193679,0.00,ROSSENDALES LTD,A00964,8,2016
Allerdale Borough Council,70104,VAT,Input VAT,VAT - 20%,07/12/2016,193680,0.00,ROSSENDALES LTD,A00964,8,2016
Allerdale Borough Council,70104,VAT,Input VAT,VAT - 20%,07/12/2016,193681,0.00,ROSSENDALES LTD,A00964,8,2016
Allerdale Borough Council,12403,Premises,Homelessness,Gas,30/11/2016,193682,60.79,GAZPROM ENERGY,X00246,8,2016
Allerdale Borough Council,12403,Premises,Homelessness,Gas,30/11/2016,193683,72.65,GAZPROM ENERGY,X00246,8,2016
Allerdale Borough Council,12403,Premises,Homelessness,Gas,30/11/2016,193684,77.35,GAZPROM ENERGY,X00246,8,2016
Allerdale Borough Council,12403,Premises,Homelessness,Gas,30/11/2016,193685,74.37,GAZPROM ENERGY,X00246,8,2016
Allerdale Borough Council,15600,Supplies & Services,Electoral Registration,Budget-Postal Services,30/11/2016,193686,333.44,ROYAL MAIL LETTERS,X00021,8,2016
Allerdale Borough Council,12408,Premises,Corporate Property Maintenance,Water & Sewage,30/11/2016,193687,"6,633.85",UNITED UTILITIES,X00011,8,2016
Allerdale Borough Council,15703,Supplies & Services,Shared ICT Costs,Call Charges,30/11/2016,193688,"1,365.62",BRITISH TELECOMMUNICATIONS,X00004,8,2016
Allerdale Borough Council,15803,Supplies & Services,IT Costs (Allerdale Only),Hardware Purchase,07/12/2016,193689,-382.23,MISCO,A00125,8,2016
Allerdale Borough Council,15405,Supplies & Services,Arts Development,Use of External Printers,07/12/2016,193690,78.30,CUMBRIA TSL LIMITED,A01051,8,2016
Allerdale Borough Council,37101,Income,Customer Services Pay Group,Salary Recharges Income,30/11/2016,193691,450.86,ADECCO RECRUITMENT,A00188,8,2016
Allerdale Borough Council,15203,Supplies & Services,IT Services,Catering Costs and Consumables,30/11/2016,193692,59.40,AL'S KITCHEN LTD,A00187,8,2016
Allerdale Borough Council,16301,Supplies & Services,KMAG Enhancement Activity,Reimbursement,30/11/2016,193693,304.57,KESWICK MUSEUM & ART GALLERY,A00337,8,2016
Allerdale Borough Council,10605,Employee Costs,Training,Travel,30/11/2016,193694,25.50,EILBECK RENTAL,A01161,8,2016
Allerdale Borough Council,15506,Supplies & Services,Food and Occupational Health,Professional Services,30/11/2016,193695,235.00,MPM NORTH WEST LIMITED,A00113,8,2016
Allerdale Borough Council,15104,Supplies & Services,Bereavement Services,Supplies for Resale,30/11/2016,193696,190.00,GRANART,A00644,8,2016
Allerdale Borough Council,12100,Premises,Parks and Grounds Maintenance,Budget-External Maintenance & Decoration,21/12/2016,193697,75.00,ISS WATERERS LANDSCAPE,C00044,8,2016
Allerdale Borough Council,12100,Premises,Parks and Grounds Maintenance,Budget-External Maintenance & Decoration,21/12/2016,193698,528.00,ISS WATERERS LANDSCAPE,C00044,8,2016
Allerdale Borough Council,20100,Third Party Payments,Environmental Initiatives,Budget-Partnership Services,21/12/2016,193699,674.80,ISS WATERERS LANDSCAPE,C00044,8,2016
Allerdale Borough Council,10401,Employee Costs,Housing & Health Pay Group,Agency Staff Costs,21/12/2016,193700,145.20,HAYS SPECIALIST RECRUITMENT LTD,A00280,8,2016
Allerdale Borough Council,15550,Supplies & Services,Solway Wetlands Project,General-Service Related Fees,30/11/2016,193701,"20,769.42",GRAMPUS HERITAGE & TRAINING LTD,A01890,8,2016
Allerdale Borough Council,15506,Supplies & Services,Sports Development,Professional Services,30/11/2016,193702,210.00,WIGTON RUFC,A01291,8,2016
Allerdale Borough Council,15506,Supplies & Services,Sports Development,Professional Services,30/11/2016,193703,540.00,WIGTON RUFC,A01291,8,2016
Allerdale Borough Council,16301,Supplies & Services,KMAG Enhancement Activity,Reimbursement,30/11/2016,193704,"1,144.44",KESWICK MUSEUM & ART GALLERY,A00337,8,2016
Allerdale Borough Council,14202,Transport,Chief Executive,Hire Car and petrol,30/11/2016,193705,132.08,ENTERPRISE RENT A CAR,A01367,8,2016
Allerdale Borough Council,16301,Supplies & Services,KMAG Enhancement Activity,Reimbursement,30/11/2016,193706,"1,091.00",KESWICK MUSEUM & ART GALLERY,A00337,8,2016
Allerdale Borough Council,12408,Premises,Public Convenience Cleaning,Water & Sewage,30/11/2016,193707,92.30,UNITED UTILITIES ,X00011,8,2016
Allerdale Borough Council,12408,Premises,Public Convenience Cleaning,Water & Sewage,30/11/2016,193708,16.54,UNITED UTILITIES,X00011,8,2016
Allerdale Borough Council,10401,Employee Costs,Shared IT Services Pay Group,Agency Staff Costs,30/11/2016,193709,468.33,ADECCO RECRUITMENT,A00188,8,2016
Allerdale Borough Council,21100,Transfer Payments,Economic Regeneration,Budget-Grants Paid,07/12/2016,193710,"1,800.00",BOWLES GREEN LIMITED,A00763,8,2016
Allerdale Borough Council,15803,Supplies & Services,IT Costs (Allerdale Only),Hardware Purchase,14/12/2016,193711,382.23,MISCO,A00125,8,2016
Allerdale Borough Council,14101,Transport,Shared IT Services Pay Group,Vehicle Leasing,11/01/2017,193712,199.00,ARNOLD CLARK FINANCE LIMITED,A01781,8,2016
Allerdale Borough Council,10601,Employee Costs,Training,External Courses & Seminar Fees,30/11/2016,193713,29.00,NORTHERN HOUSING CONSORTIUM LIMITED,A00260,8,2016
Allerdale Borough Council,10605,Employee Costs,Training,Travel,30/11/2016,193714,25.50,EILBECK RENTAL,A01161,8,2016
Allerdale Borough Council,10605,Employee Costs,Training,Travel,30/11/2016,193715,25.50,EILBECK RENTAL,A01161,8,2016
Allerdale Borough Council,10401,Employee Costs,Shared IT Services Pay Group,Agency Staff Costs,07/12/2016,193716,538.23,ADECCO RECRUITMENT,A00188,8,2016
Allerdale Borough Council,21150,Transfer Payments,Festivals & Events,General Grants,30/11/2016,193717,700.00,SALTERBECK RESIDENTS ASSOC,M01020,8,2016
Allerdale Borough Council,16102,Supplies & Services,Sellafield Social Impact Investment Fund,Regeneration Initiatives,30/11/2016,193732,"25,000.00",Redacted information - included personal information ,M01021,8,2016
Allerdale Borough Council,54105,Capital Expenditure,Disabled Facilities Grants,Grants  Private Individuals (Capital),30/11/2016,193733,"12,000.00",Redacted information - included personal information ,X00251,8,2016
Allerdale Borough Council,33150,Income,Building Control - Non-Chargeable,Other Fees Income,30/11/2016,193736,15.00,PAISLEYS SOLICITORS,M00216,8,2016
Allerdale Borough Council,33112,Income,Planning and Development,Planning Fees Income,30/11/2016,193737,385.00,MONO CONSULTANTS,M01022,8,2016
Allerdale Borough Council,34150,Income,Building Control - Non-Chargeable,General Recovery of Other Costs-Income,30/11/2016,193738,96.00,Redacted information - included personal information ,M01023,8,2016
Allerdale Borough Council,15501,Supplies & Services,Planning Policy,Consultants Fees,30/11/2016,193739,"2,520.00",CUMBRIA CC,A00066,8,2016
Allerdale Borough Council,52101,Capital Expenditure,Housing Improvement Projects,Architects Fees (Capital),07/12/2016,193740,"2,000.00",DAY CUMMINS LIMITED,A00131,8,2016
Allerdale Borough Council,15501,Supplies & Services,Homelessness,Consultants Fees,07/12/2016,193741,25.98,JAMES STREET GROUP PRACTICE,A00462,8,2016
Allerdale Borough Council,12203,Premises,Public Convenience Cleaning,Plumbing and Heating Maintenance,07/12/2016,193742,559.00,Redacted information - included personal information ,C00008,8,2016
Allerdale Borough Council,12101,Premises,Corporate Property Maintenance,External Maintenance & Decoration,07/12/2016,193743,"2,280.00",PATON BROS SCAFFOLDING LTD,C00009,8,2016
Allerdale Borough Council,15501,Supplies & Services,Solway Wetlands Project,Consultants Fees,07/12/2016,193744,800.00,CREATIVE HORIZONS CUMBRIA,A02277,8,2016
Allerdale Borough Council,12305,Premises,Corporate Property Maintenance,Inspections and Services,07/12/2016,193745,13.00,REFRIGERATION (MITTON) LTD,C00012,8,2016
Allerdale Borough Council,16102,Supplies & Services,LEP Flood Recovery Events Funding,Regeneration Initiatives,07/12/2016,193746,"1,140.00",THE COCKERMOUTH POST,A01713,8,2016
Allerdale Borough Council,12101,Premises,Car Parks Inspection & Maintenance,External Maintenance & Decoration,07/12/2016,193747,784.00,JOHN ELLIOTT LIMITED,C00023,8,2016
Allerdale Borough Council,75103,Holding and Control Accounts,Payroll Suspense Account,PAYROLL November 16 Travel & Subsistence  ,,,"14,753.35",INLAND REVENUE,X00038,8,2016
